Workbook

Sheet 1. Utility_Info_
AB1: Algoma Power Inc.
AB2: Atikokan Hydro Inc.
AB3: Attawapiskat Power Corporation
AB4: Bluewater Power Distribution Corp.
AB5: Brant County Power
AB6: Brantford Power Inc.
AB7: Burlington Hydro Inc.
AB8: Cambridge and North Dumfries Hydro
AB9: Canadian Niagara Power Inc. – Eastern Ontario Power/Fort Erie/Port Colborne
AB10: Centre Wellington Hydro Ltd.
AB11: Chapleau Public Utilities Corporation
AB12: COLLUS Power Corp.
AB13: Cooperative Hydro Embrun Inc.
AB14: E.L.K. Energy Inc.
C15: Utility Name | D15: Alectra Utilities Corporation - PowerStream Rate Zone | AB15: Enersource Hydro Mississauga Inc.
AB16: Entegrus Powerlines Inc.
C17: Assigned EB Number | AB17: ENWIN Utilities Ltd.
AB18: Erie Thames Powerlines Corp.
C19: Name and Title | D19: Natalie Yeates, Director, Regulatory Affairs & Reporting | AB19: Espanola Regional Hydro Distribution Corporation
AB20: Essex Powerlines Corporation
C21: Phone Number | D21: 416-617-1959 | AB21: Festival Hydro Inc.
AB22: Fort Albany Power Corporation
C23: Email Address | D23: natalie.yeates@alectrautilities.com | AB23: Fort Frances Power Corporation
AB24: Greater Sudbury Hydro Inc.
C25: Date | AB25: Grimsby Power Inc.
AB26: Guelph Hydro Electric Systems Inc.
C27: ICM Project | D27: 2019 - Bathurst Road Widening | AB27: Haldimand County Hydro Inc.
AB28: Halton Hills Hydro Inc.
AB29: Hearst Power Distribution Co. Ltd.
A30: Note: Drop-down lists are shaded blue; Input cells are shaded green.
AB32: Horizon Utilities Corporation
AB33: Hydro 2000 Inc.
AB34: Hydro Hawkesbury Inc.
AB35: Hydro One Brampton Networks Inc.
AB36: Hydro One Networks Inc.
AB37: Hydro One Remote Communities Inc.
AB38: Hydro Ottawa Limited
AB39: Innisfil Hydro Dist. Systems Limited
AB40: Kashechewan Power Corporation
AB41: Kenora Hydro Electric Corporation Ltd.
AB42: Kingston Hydro Corporation
AB43: Kitchener-Wilmot Hydro Inc.
AB44: Lakefront Utilities Inc.
AB45: Lakeland Power Distribution Ltd.
AB46: London Hydro Inc.
AB47: Midland Power Utility Corporation
AB48: Milton Hydro Distribution Inc.
AB49: Newmarket – Tay Power Distribution Ltd.
AB50: Niagara Peninsula Energy Inc.
AB51: Niagara-on-the-Lake Hydro Inc.
AB52: Norfolk Power Distribution Ltd.
AB53: North Bay Hydro Distribution Limited
AB54: Northern Ontario Wires Inc.
AB55: Oakville Hydro Distribution Inc.
AB56: Orangeville Hydro Limited
AB57: Orillia Power Distribution Corp.
AB58: Oshawa PUC Networks Inc.
AB59: Ottawa River Power Corporation
AB60: Parry Sound Power Corporation
AB61: Peterborough Distribution Inc.
AB62: PowerStream Inc.
AB63: PUC Distribution Inc.
AB64: Renfrew Hydro Inc.
AB65: Rideau St. Lawrence Distribution Inc.
AB66: St. Thomas Energy Inc.
AB67: Sioux Lookout Hydro Inc.
AB68: Thunder Bay Hydro Electricity Distribution
AB69: Tillsonburg Hydro Inc.
AB70: Toronto Hydro-Electric System Limited
AB71: Veridian Connections Inc.
AB72: Wasaga Distribution Inc.
AB73: Waterloo North Hydro Inc.
AB74: Welland Hydro Electric System Corp.
AB75: Wellington North Power Inc.
AB76: West Coast Huron Energy Inc.
AB77: Westario Power Inc.
AB78: Whitby Hydro Electric Corporation
AB79: Woodstock Hydro Services Inc.
AB81: Alectra Utilities Corporation - PowerStream Rate Zone
AB82: Alectra Utilities Corporation - Brampton Rate Zone
AB83: Alectra Utilities Corporation - Enersource Rate Zone
AB84: Alectra Utilities Corporation - Horizon Rate Zone
AB85: Alectra Utilities Corporation - Guelph Rate Zone

Sheet 2. ICM_Costs
G18: 2019 | I18: 2015 | K18: Total
B19: Sheet 2: ICM Capital Cost Data | G19: Audited Actual | I19: Forecast
B39: 1 | C39: Capital Costs
E40: Asset Type
C41: SYSTEM ACCESS | E41: Asset type must be selected to enable calculations | G41: =IF(ISBLANK(G19),"",G19) -> Audited Actual | I41: =IF(ISBLANK(I19),"",I19) -> Forecast
E42: OH Swtch & Cpctrs | G42: 255711.1284 | K42: =SUM(G42,I42) -> 255711.1284
E44: Concrete Poles | G44: 582614.274 | K44: =SUM(G44,I44) -> 582614.274
E46: Wood Poles | G46: 980064.844 | K46: =SUM(G46,I46) -> 980064.844
E48: OH Transformers | G48: 284123.476 | K48: =SUM(G48,I48) -> 284123.476
E50: OH Prim Cond & Dev | G50: 426185.214 | K50: =SUM(G50,I50) -> 426185.214
E52: OH Sec Cond & Dev | G52: 142061.738 | K52: 142061.738
E54: UG Prim XLPE TR | G54: 85237.0428 | K54: 85237.0428
E56: UG Sec - Dir Buried | G56: 85237.0428 | K56: 85237.0428
K58: 0
K60: 0
C62: Total System Access | G62: =SUM(G42,G44,G46,G48,G50,G52,G54,G56,G58,G60) -> 2841234.76 | I62: =SUM(I42,I44,I46,I48,I50,I52,I54,I56,I58,I60) -> 0 | K62: =SUM(K42,K44,K46,K48,K50,K52,K54,K56,K58,K60) -> 2841234.76
E64: =E40 -> Asset Type
C65: SYSTEM RENEWAL | G65: =G41 -> Audited Actual | I65: =I41 -> Forecast
K66: =SUM(G66,I66) -> 0
K68: =SUM(G68,I68) -> 0
K70: =SUM(G70,I70) -> 0
K72: =SUM(G72,I72) -> 0
K74: =SUM(G74,I74) -> 0
K76: =SUM(G76,I76) -> 0
K78: =SUM(G78,I78) -> 0
K80: =SUM(G80,I80) -> 0
K82: =SUM(G82,I82) -> 0
K84: 0
C86: Total System Renewal | G86: =SUM(G66,G68,G70,G72,G74,G76,G78,G80,G82,G84) -> 0 | I86: =SUM(I66,I68,I70,I72,I74,I76,I78,I80,I82,I84) -> 0 | K86: =SUM(K66,K68,K70,K72,K74,K76,K78,K80,K82,K84) -> 0
E88: =E64 -> Asset Type
C89: SYSTEM SERVICE | G89: =G65 -> Audited Actual | I89: =I65 -> Forecast
K90: =SUM(G90,I90) -> 0
K92: =SUM(G92,I92) -> 0
K94: =SUM(G94,I94) -> 0
K96: =SUM(G96,I96) -> 0
K98: =SUM(G98,I98) -> 0
K100: =SUM(G100,I100) -> 0
K102: =SUM(G102,I102) -> 0
K104: =SUM(G104,I104) -> 0
K106: =SUM(G106,I106) -> 0
K108: 0
C110: Total System Service | G110: =SUM(G90,G92,G94,G96,G98,G100,G102,G104,G106,G108) -> 0 | I110: =SUM(I90,I92,I94,I96,I98,I100,I102,I104,I106,I108) -> 0 | K110: =SUM(K90,K92,K94,K96,K98,K100,K102,K104,K106,K108) -> 0
E112: =E88 -> Asset Type
C113: GENERAL PLANT | G113: Audited Actual | I113: =I89 -> Forecast
K115: =SUM(G115,I115) -> 0
K117: =SUM(G117,I117) -> 0
K119: =SUM(G119,I119) -> 0
K121: =SUM(G121,I121) -> 0
K123: =SUM(G123,I123) -> 0
K125: =SUM(G125,I125) -> 0
K127: =SUM(G127,I127) -> 0
K129: =SUM(G129,I129) -> 0
K131: =SUM(G131,I131) -> 0
K133: 0
C135: Total General Plant | G135: =SUM(G115,G117,G119,G121,G123,G125,G127,G129,G131,G133) -> 0 | I135: =SUM(I115,I117,I119,I121,I123,I125,I127,I129,I131,I133) -> 0 | K135: =SUM(K115,K117,K119,K121,K123,K125,K127,K129,K131,K133) -> 0
E137: =E112 -> Asset Type
G138: Audited Actual | I138: =I113 -> Forecast
K140: =SUM(G140,I140) -> 0
K142: =SUM(G142,I142) -> 0
K144: =SUM(G144,I144) -> 0
K146: =SUM(G146,I146) -> 0
K148: =SUM(G148,I148) -> 0
K150: =SUM(G150,I150) -> 0
K152: =SUM(G152,I152) -> 0
K154: =SUM(G154,I154) -> 0
K156: =SUM(G156,I156) -> 0
K158: 0
C160: Total | G160: =SUM(G140,G142,G144,G146,G148,G150,G152,G154,G156,G158) -> 0 | I160: =SUM(I140,I142,I144,I146,I148,I150,I152,I154,I156,I158) -> 0 | K160: =SUM(K140,K142,K144,K146,K148,K150,K152,K154,K156,K158) -> 0
C162: Total Capital Costs Related to Incremental Capital Projects (ICP) | G162: =G160+G135+G110+G86+G62 -> 2841234.76 | I162: =SUM(I62,I86,I110,I135,I160) -> 0 | K162: =SUM(K62,K86,K110,K135,K160) -> 2841234.76
E164: =E137 -> Asset Type
C165: OTHER CAPITAL COST | G165: Audited Actual | I165: =I138 -> Forecast
C167: A | K167: =SUM(G167,I167) -> 0
C169: B | K169: =SUM(G169,I169) -> 0
C171: C | K171: =SUM(G171,I171) -> 0
C173: Total Other Capital Costs | G173: =SUM(G167,G169,G171) -> 0 | I173: =SUM(I167,I169,I171) -> 0 | K173: =SUM(K167,K169,K171) -> 0
C175: Total ICM Capital Costs | G175: =G162+G173 -> 2841234.76 | I175: =I162+I173 -> 0 | K175: =K162+K173 -> 2841234.76
B178: 2 | C178: Aggregated ICM Costs by Category
C180: Asset Account | D180: Capital | E180: Account
C182: 120227 | D182: OH Swtch & Cpctrs | E182: 1835 | G182: =SUMIF($E$42:$E$171,$D182,G$42:G$171) -> 255711.1284 | I182: =SUMIF($E$42:$E$171,$D182,I$42:I$171) -> 0 | K182: =SUM(G182:J182) -> 255711.1284
C184: 120223 | D184: Concrete Poles | E184: 1830 | G184: =SUMIF($E$42:$E$171,$D184,G$42:G$171) -> 582614.274 | I184: =SUMIF($E$42:$E$171,$D184,I$42:I$171) -> 0 | K184: =SUM(G184:J184) -> 582614.274
C186: 120221 | D186: Wood Poles | E186: 1830 | G186: =SUMIF($E$42:$E$171,$D186,G$42:G$171) -> 980064.844 | I186: =SUMIF($E$42:$E$171,$D186,I$42:I$171) -> 0 | K186: =SUM(G186:J186) -> 980064.844
C188: 120225 | D188: OH Transformers | E188: 1850 | G188: =SUMIF($E$42:$E$171,$D188,G$42:G$171) -> 284123.476 | I188: =SUMIF($E$42:$E$171,$D188,I$42:I$171) -> 0 | K188: =SUM(G188:J188) -> 284123.476
C190: 120224 | D190: OH Prim Cond & Dev | E190: 1835 | G190: =SUMIF($E$42:$E$171,$D190,G$42:G$171) -> 426185.214 | I190: =SUMIF($E$42:$E$171,$D190,I$42:I$171) -> 0 | K190: =SUM(G190:J190) -> 426185.214
C192: 120226 | D192: OH Sec Cond & Dev | E192: 1855 | G192: =SUMIF($E$42:$E$171,$D192,G$42:G$171) -> 142061.738 | I192: =SUMIF($E$42:$E$171,$D192,I$42:I$171) -> 0 | K192: =SUM(G192:J192) -> 142061.738
C194: 120243 | D194: UG Transformers | E194: 1850 | G194: =SUMIF($E$42:$E$171,$D194,G$42:G$171) -> 0 | I194: =SUMIF($E$42:$E$171,$D194,I$42:I$171) -> 0 | K194: =SUM(G194:J194) -> 0
C196: 120245 | D196: UG Conduit | E196: 1840 | G196: =SUMIF($E$42:$E$171,$D196,G$42:G$171) -> 0 | I196: =SUMIF($E$42:$E$171,$D196,I$42:I$171) -> 0 | K196: =SUM(G196:J196) -> 0
C198: 120241.XLPETR | D198: UG Prim XLPE TR | E198: 1845 | G198: =SUMIF($E$42:$E$171,$D198,G$42:G$171) -> 85237.0428 | I198: =SUMIF($E$42:$E$171,$D198,I$42:I$171) -> 0 | K198: =SUM(G198:J198) -> 85237.0428
C200: 120242.DB | D200: UG Sec - Dir Buried | E200: 1845 | G200: =SUMIF($E$42:$E$171,$D200,G$42:G$171) -> 85237.0428 | I200: =SUMIF($E$42:$E$171,$D200,I$42:I$171) -> 0 | K200: =SUM(G200:J200) -> 85237.0428
C202: 120242.IDSERV | D202: UG Sec In Duct/Svs | E202: 1845 | G202: =SUMIF($E$42:$E$171,$D202,G$42:G$171) -> 0 | I202: 0 | K202: 0
C204: 120248 | D204: Air Insulated Switchgear | E204: 1845 | G204: 0 | I204: 0 | K204: 0
C206: 120249 | D206: Solid Dielectric Switchgear | E206: 1845 | G206: 0 | I206: 0 | K206: 0
C208: 120244 | D208: UG Cable Injection | E208: 1845 | G208: 0
C210: 120063.MS | D210: MS Integrated P&C Systems | E210: 1820 | G210: 0
C212: 120021.MS | D212: MS Building Improvements | E212: 1820 | G212: 0
C214: 130104 | D214: Capital Contributions Paid | E214: 1609 | G214: 0
D219: Total Capital Costs | G219: =SUM(G182:G217) -> 2841234.76 | I219: =SUM(I182:I217) -> 0 | K219: =SUM(K182:K217) -> 2841234.76
G220: =IF(G219=G175," ","Error") ->  | I220: =IF(I219=I175,"","Error") ->  | K220: =IF(K219=K175,"","Error") -> 

Sheet 3. Cost_of_Service_Parameters
B17: Sheet 3: Parameters and Rates
G19: 2019 | I19: 2020 | K19: 2021 | M19: 2022 | O19: 2023 | Q19: 2024 | S19: 2025 | U19: 2026
B20: Cost of Capital
C21: Capital Structure
D22: Deemed Short-term Debt Capitalization | G22: 0.04 | I22: 0.04 | K22: 0.04 | M22: 0.04 | O22: 0.04 | Q22: 0.04 | S22: 0.04 | U22: 0.04
D23: Deemed Long-term Debt Capitalization | G23: =60%-G22 -> 0.56 | I23: =G23-(I22-G22) -> 0.56 | K23: =I23-(K22-I22) -> 0.56 | M23: =K23-(M22-K22) -> 0.56 | O23: =M23-(O22-M22) -> 0.56 | Q23: =O23-(Q22-O22) -> 0.56 | S23: =Q23-(S22-Q22) -> 0.56 | U23: =S23-(U22-S22) -> 0.56
D24: Deemed Equity Capitalization | G24: =100%-G23-G25-G22 -> 0.4 | I24: =100%-I23-I25-I22 -> 0.4 | K24: =100%-K23-K25-K22 -> 0.4 | M24: =100%-M23-M25-M22 -> 0.4 | O24: =100%-O23-O25-O22 -> 0.4 | Q24: =100%-Q23-Q25-Q22 -> 0.4 | S24: =100%-S23-S25-S22 -> 0.4 | U24: =100%-U23-U25-U22 -> 0.4
D25: Preferred Shares
C26: Total | G26: =SUM(G22:G25) -> 1 | I26: =SUM(I22:I25) -> 1 | K26: =SUM(K22:K25) -> 1 | M26: =SUM(M22:M25) -> 1 | O26: =SUM(O22:O25) -> 1 | Q26: =SUM(Q22:Q25) -> 1 | S26: =SUM(S22:S25) -> 1 | U26: =SUM(U22:U25) -> 1
C28: Cost of Capital Parameters
D29: Deemed Short-term Debt Rate | G29: 0.0176 | I29: 0.0176 | K29: 0.0176 | M29: 0.0176 | O29: 0.0176 | Q29: 0.0176 | S29: 0.0176 | U29: 0.0176
D30: Long-term Debt Rate (actual/embedded/deemed)1 | G30: 0.03882504 | I30: 0.03882504 | K30: 0.03882504 | M30: 0.03882504 | O30: 0.03882504 | Q30: 0.03882504 | S30: 0.03882504 | U30: 0.03882504
D31: Target Return on Equity (ROE) | G31: 0.0878 | I31: 0.0878 | K31: 0.0878 | M31: 0.0878 | O31: 0.0878 | Q31: 0.0878 | S31: 0.0878 | U31: 0.0878
D32: Return on Preferred Shares
C33: WACC | G33: =SUMPRODUCT(G22:G25,G29:G32) -> 0.0575660224 | I33: =SUMPRODUCT(I22:I25,I29:I32) -> 0.0575660224 | K33: =SUMPRODUCT(K22:K25,K29:K32) -> 0.0575660224 | M33: =SUMPRODUCT(M22:M25,M29:M32) -> 0.0575660224 | O33: =SUMPRODUCT(O22:O25,O29:O32) -> 0.0575660224 | Q33: =SUMPRODUCT(Q22:Q25,Q29:Q32) -> 0.0575660224 | S33: =SUMPRODUCT(S22:S25,S29:S32) -> 0.0575660224 | U33: =SUMPRODUCT(U22:U25,U29:U32) -> 0.0575660224
B35: Working Capital Allowance
C36: Working Capital Allowance Rate | G36: 0.075 | I36: 0.075 | K36: 0.075 | M36: 0.075 | O36: 0.075 | Q36: 0.075 | S36: 0.075 | U36: 0.075
C37: (% of the sum of Cost of Power + controllable expenses)
B39: Taxes/PILs
C40: Aggregate Corporate Income Tax Rate | G40: 0.265 | I40: 0.265 | K40: 0.265 | M40: 0.265 | O40: 0.265 | Q40: 0.265 | S40: 0.265 | U40: 0.265
C41: Capital Tax (until July 1st, 2010) | G41: 0 | I41: 0 | K41: 0 | M41: 0 | O41: 0 | Q41: 0 | S41: 0 | U41: 0
B43: Depreciation Rates | E43: Account
B44: (expressed as expected useful life in years)
C45: OH Swtch & Cpctrs | E45: 1835 | G45: 38 | I45: 38 | K45: 38 | M45: 38 | O45: 38 | Q45: 38 | S45: 35 | U45: 35
C46: - rate (%) | G46: 0.02631578947 | I46: 0.02631578947 | K46: 0.02631578947 | M46: 0.02631578947 | O46: 0.02631578947 | Q46: 0.02631578947 | S46: 0.02857142857 | U46: 0.02857142857
C47: Concrete Poles | E47: 1830 | G47: 51 | I47: 51 | K47: 51 | M47: 51 | O47: 51 | Q47: 51 | S47: 60 | U47: 60
C48: - rate (%) | G48: 0.01960784314 | I48: 0.01960784314 | K48: 0.01960784314 | M48: 0.01960784314 | O48: 0.01960784314 | Q48: 0.01960784314 | S48: 0.01666666667 | U48: 0.01666666667
C49: Wood Poles | E49: 1830 | G49: 44 | I49: 44 | K49: 44 | M49: 44 | O49: 44 | Q49: 44 | S49: 45 | U49: 45
C50: - rate (%) | G50: 0.02272727273 | I50: 0.02272727273 | K50: 0.02272727273 | M50: 0.02272727273 | O50: 0.02272727273 | Q50: 0.02272727273 | S50: 0.02222222222 | U50: 0.02222222222
C51: OH Transformers | E51: 1850 | G51: 41 | I51: 41 | K51: 41 | M51: 41 | O51: 41 | Q51: 41 | S51: 45 | U51: 45
C52: - rate (%) | G52: 0.0243902439 | I52: 0.0243902439 | K52: 0.0243902439 | M52: 0.0243902439 | O52: 0.0243902439 | Q52: 0.0243902439 | S52: 0.02222222222 | U52: 0.02222222222
C53: OH Prim Cond & Dev | E53: 1835 | G53: 45 | I53: 45 | K53: 45 | M53: 45 | O53: 45 | Q53: 45 | S53: 50 | U53: 50
C54: - rate (%) | G54: 0.02222222222 | I54: 0.02222222222 | K54: 0.02222222222 | M54: 0.02222222222 | O54: 0.02222222222 | Q54: 0.02222222222 | S54: 0.02 | U54: 0.02
C55: OH Sec Cond & Dev | E55: 1855 | G55: 48 | I55: 48 | K55: 48 | M55: 48 | O55: 48 | Q55: 48 | S55: 50 | U55: 50
C56: - rate (%) | G56: 0.02083333333 | I56: 0.02083333333 | K56: 0.02083333333 | M56: 0.02083333333 | O56: 0.02083333333 | Q56: 0.02083333333 | S56: 0.02 | U56: 0.02
C57: UG Transformers | E57: 1850 | G57: 32 | I57: 32 | K57: 32 | M57: 32 | O57: 32 | Q57: 32 | S57: 30 | U57: 30
C58: - rate (%) | G58: 0.03125 | I58: 0.03125 | K58: 0.03125 | M58: 0.03125 | O58: 0.03125 | Q58: 0.03125 | S58: 0.03333333333 | U58: 0.03333333333
C59: UG Conduit | E59: 1840 | G59: 52 | I59: 52 | K59: 52 | M59: 52 | O59: 52 | Q59: 52 | S59: 60 | U59: 60
C60: - rate (%) | G60: 0.01923076923 | I60: 0.01923076923 | K60: 0.01923076923 | M60: 0.01923076923 | O60: 0.01923076923 | Q60: 0.01923076923 | S60: 0.01666666667 | U60: 0.01666666667
C61: UG Prim XLPE TR | E61: 1845 | G61: 38 | I61: 38 | K61: 38 | M61: 38 | O61: 38 | Q61: 38 | S61: 45 | U61: 45
C62: - rate (%) | G62: 0.02631578947 | I62: 0.02631578947 | K62: 0.02631578947 | M62: 0.02631578947 | O62: 0.02631578947 | Q62: 0.02631578947 | S62: 0.02222222222 | U62: 0.02222222222
C63: UG Sec - Dir Buried | E63: 1845 | G63: 31 | I63: 31 | K63: 31 | M63: 31 | O63: 31 | Q63: 31 | S63: 30 | U63: 30
C64: - rate (%) | G64: 0.03225806452 | I64: 0.03225806452 | K64: 0.03225806452 | M64: 0.03225806452 | O64: 0.03225806452 | Q64: 0.03225806452 | S64: 0.03333333333 | U64: 0.03333333333
C65: UG Sec In Duct/Svs | E65: 1845 | G65: 37 | I65: 37 | K65: 37 | M65: 37 | O65: 37 | Q65: 37 | S65: 40 | U65: 40
C66: - rate (%) | G66: 0.02702702703 | I66: 0.02702702703 | K66: 0.02702702703 | M66: 0.02702702703 | O66: 0.02702702703 | Q66: 0.02702702703 | S66: 0.025 | U66: 0.025
C67: Air Insulated Switchgear | E67: 1845 | G67: 39 | I67: 39 | K67: 39 | M67: 39 | O67: 39 | Q67: 39 | S67: 35 | U67: 35
C68: - rate (%) | G68: 0.02564102564 | I68: 0.02564102564 | K68: 0.02564102564 | M68: 0.02564102564 | O68: 0.02564102564 | Q68: 0.02564102564 | S68: 0.02857142857 | U68: 0.02857142857
C69: Solid Dielectric Switchgear | E69: 1845 | G69: 42 | I69: 42 | K69: 42 | M69: 42 | O69: 42 | Q69: 42 | S69: 45 | U69: 45
C70: - rate (%) | G70: 0.02380952381 | I70: 0.02380952381 | K70: 0.02380952381 | M70: 0.02380952381 | O70: 0.02380952381 | Q70: 0.02380952381 | S70: 0.02222222222 | U70: 0.02222222222
C71: UG Cable Injection | E71: 1845 | G71: 24 | I71: 24 | K71: 24 | M71: 24 | O71: 24 | Q71: 24 | S71: 20 | U71: 20
C72: - rate (%) | G72: 0.04166666667 | I72: 0.04166666667 | K72: 0.04166666667 | M72: 0.04166666667 | O72: 0.04166666667 | Q72: 0.04166666667 | S72: 0.05 | U72: 0.05
C73: MS Integrated P&C Systems | E73: 1820 | G73: 36 | I73: 36 | K73: 36 | M73: 36 | O73: 36 | Q73: 36 | S73: 15 | U73: 15
C74: - rate (%) | G74: 0.02777777778 | I74: 0.02777777778 | K74: 0.02777777778 | M74: 0.02777777778 | O74: 0.02777777778 | Q74: 0.02777777778 | S74: 0.06666666667 | U74: 0.06666666667
C75: MS Building Improvements | E75: 1820 | G75: 21 | I75: 21 | K75: 21 | M75: 21 | O75: 21 | Q75: 21 | S75: 25 | U75: 25
C76: - rate (%) | G76: 0.04761904762 | I76: 0.04761904762 | K76: 0.04761904762 | M76: 0.04761904762 | O76: 0.04761904762 | Q76: 0.04761904762 | S76: 0.04 | U76: 0.04
C77: Capital Contributions Paid | E77: 1609 | G77: 40 | I77: 40 | K77: 40 | M77: 40 | O77: 40 | Q77: 40 | S77: 40 | U77: 40
C78: - rate (%) | G78: 0.025 | I78: 0.025 | K78: 0.025 | M78: 0.025 | O78: 0.025 | Q78: 0.025 | S78: 0.025 | U78: 0.025
B82: CCA Rates
C83: OH Swtch & Cpctrs - CCA Class | G83: 47 | I83: 47 | K83: 47 | M83: 47 | O83: 47 | Q83: 47 | S83: 47 | U83: 47
C84: OH Swtch & Cpctrs - CCA Rate | G84: 0.08 | I84: 0.08 | K84: 0.08 | M84: 0.08 | O84: 0.08 | Q84: 0.08 | S84: 0.08 | U84: 0.08
C86: Concrete Poles - CCA Class | G86: 47 | I86: 47 | K86: 47 | M86: 47 | O86: 47 | Q86: 47 | S86: 47 | U86: 47
C87: Concrete Poles - CCA Rate | G87: 0.08 | I87: 0.08 | K87: 0.08 | M87: 0.08 | O87: 0.08 | Q87: 0.08 | S87: 0.08 | U87: 0.08
C89: Wood Poles - CCA Class | G89: 47 | I89: 47 | K89: 47 | M89: 47 | O89: 47 | Q89: 47 | S89: 47 | U89: 47
C90: Wood Poles - CCA Rate | G90: 0.08 | I90: 0.08 | K90: 0.08 | M90: 0.08 | O90: 0.08 | Q90: 0.08 | S90: 0.08 | U90: 0.08
C92: OH Transformers - CCA Class | G92: 47 | I92: 47 | K92: 47 | M92: 47 | O92: 47 | Q92: 47 | S92: 47 | U92: 47
C93: OH Transformers - CCA Rate | G93: 0.08 | I93: 0.08 | K93: 0.08 | M93: 0.08 | O93: 0.08 | Q93: 0.08 | S93: 0.08 | U93: 0.08
C95: OH Prim Cond & Dev - CCA Class | G95: 47 | I95: 47 | K95: 47 | M95: 47 | O95: 47 | Q95: 47 | S95: 47 | U95: 47
C96: OH Prim Cond & Dev - CCA Rate | G96: 0.08 | I96: 0.08 | K96: 0.08 | M96: 0.08 | O96: 0.08 | Q96: 0.08 | S96: 0.08 | U96: 0.08
C98: OH Sec Cond & Dev - CCA Class | G98: 47 | I98: 47 | K98: 47 | M98: 47 | O98: 47 | Q98: 47 | S98: 47 | U98: 47
C99: OH Sec Cond & Dev - CCA Rate | G99: 0.08 | I99: 0.08 | K99: 0.08 | M99: 0.08 | O99: 0.08 | Q99: 0.08 | S99: 0.08 | U99: 0.08
C101: UG Transformers - CCA Class | G101: 47 | I101: 47 | K101: 47 | M101: 47 | O101: 47 | Q101: 47 | S101: 47 | U101: 47
C102: UG Transformers - CCA Rate | G102: 0.08 | I102: 0.08 | K102: 0.08 | M102: 0.08 | O102: 0.08 | Q102: 0.08 | S102: 0.08 | U102: 0.08
C104: OH Services - CCA Class | G104: 47 | I104: 47 | K104: 47 | M104: 47 | O104: 47 | Q104: 47 | S104: 47 | U104: 47
C105: OH Services - CCA Rate | G105: 0.08 | I105: 0.08 | K105: 0.08 | M105: 0.08 | O105: 0.08 | Q105: 0.08 | S105: 0.08 | U105: 0.08
C107: UG Conduit - CCA Class | G107: 47 | I107: 47 | K107: 47 | M107: 47 | O107: 47 | Q107: 47 | S107: 47 | U107: 47
C108: UG Conduit - CCA Rate | G108: 0.08 | I108: 0.08 | K108: 0.08 | M108: 0.08 | O108: 0.08 | Q108: 0.08 | S108: 0.08 | U108: 0.08
C110: UG Prim XLPE TR - CCA Class | G110: 47 | I110: 47 | K110: 47 | M110: 47 | O110: 47 | Q110: 47 | S110: 47 | U110: 47
C111: UG Prim XLPE TR - CCA Rate | G111: 0.08 | I111: 0.08 | K111: 0.08 | M111: 0.08 | O111: 0.08 | Q111: 0.08 | S111: 0.08 | U111: 0.08
C113: UG Sec - Dir Buried - CCA Class | G113: 47 | I113: 47 | K113: 47 | M113: 47 | O113: 47 | Q113: 47 | S113: 47 | U113: 47
C114: UG Sec - Dir Buried - CCA Rate | G114: 0.08 | I114: 0.08 | K114: 0.08 | M114: 0.08 | O114: 0.08 | Q114: 0.08 | S114: 0.08 | U114: 0.08
C116: UG Sec In Duct/Svs - CCA Class | G116: 47 | I116: 47 | K116: 47 | M116: 47 | O116: 47 | Q116: 47 | S116: 47 | U116: 47
C117: UG Sec In Duct/Svs - CCA Rate | G117: 0.08 | I117: 0.08 | K117: 0.08 | M117: 0.08 | O117: 0.08 | Q117: 0.08 | S117: 0.08 | U117: 0.08
C119: Air Insulated Switchgear - CCA Class | G119: 47 | I119: 47 | K119: 47 | M119: 47 | O119: 47 | Q119: 47 | S119: 47 | U119: 47
C120: Air Insulated Switchgear - CCA Rate | G120: 0.08 | I120: 0.08 | K120: 0.08 | M120: 0.08 | O120: 0.08 | Q120: 0.08 | S120: 0.08 | U120: 0.08
C122: Solid Dielectric Switchgear - CCA Class | G122: 47 | I122: 47 | K122: 47 | M122: 47 | O122: 47 | Q122: 47 | S122: 47 | U122: 47
C123: Solid Dielectric Switchgear - CCA Rate | G123: 0.08 | I123: 0.08 | K123: 0.08 | M123: 0.08 | O123: 0.08 | Q123: 0.08 | S123: 0.08 | U123: 0.08
C125: UG Cable Injection - CCA Class | G125: 47 | I125: 47 | K125: 47 | M125: 47 | O125: 47 | Q125: 47 | S125: 47 | U125: 47
C126: UG Cable Injection - CCA Rate | G126: 0.08 | I126: 0.08 | K126: 0.08 | M126: 0.08 | O126: 0.08 | Q126: 0.08 | S126: 0.08 | U126: 0.08
C128: MS Integrated P&C Systems - CCA Class | G128: 47 | I128: 47 | K128: 47 | M128: 47 | O128: 47 | Q128: 47 | S128: 47 | U128: 47
C129: MS Integrated P&C Systems - CCA Rate | G129: 0.08 | I129: 0.08 | K129: 0.08 | M129: 0.08 | O129: 0.08 | Q129: 0.08 | S129: 0.08 | U129: 0.08
C131: MS Building Improvements - CCA Class | G131: 1 | I131: 1 | K131: 1 | M131: 1 | O131: 1 | Q131: 1 | S131: 1 | U131: 1
C132: MS Building Improvements - CCA Rate | G132: 0.04 | I132: 0.04 | K132: 0.04 | M132: 0.04 | O132: 0.04 | Q132: 0.04 | S132: 0.04 | U132: 0.04
C134: Capital Contributions Paid - CCA Class | G134: 47 | I134: 47 | K134: 47 | M134: 47 | O134: 47 | Q134: 47 | S134: 47 | U134: 47
C135: Capital Contributions Paid - CCA Rate | G135: 0.08 | I135: 0.08 | K135: 0.08 | M135: 0.08 | O135: 0.08 | Q135: 0.08 | S135: 0.08 | U135: 0.08
B138: Assumptions
B139: 1 | C139: Fiscal calendar year (January 1 to December 31) used.
B140: 3 | C140: Amortization is done on a striaght line basis and no "half-year" rule applied.

Sheet 4. ICM_Assets_and_Rate_Base
B17: Sheet 4: ICM Assets - Net Book Value
I18: ='3. Cost_of_Service_Parameters'!G19 -> 2019 | K18: 2020 | M18: 2021 | O18: 2022 | Q18: 2023 | S18: 2024 | U18: 2025 | W18: 2026
B19: Net Fixed Assets - OH Swtch & Cpctrs
C21: Gross Book Value
D22: Opening Balance | K22: =I25 -> 255711.1284 | M22: =K25 -> 255711.1284 | O22: =M25 -> 255711.1284 | Q22: =O25 -> 255711.1284 | S22: =Q25 -> 255711.1284 | U22: =S25 -> 255711.1284 | W22: =U25 -> 255711.1284
D23: Capital Additions during year (from ICM Costs) | I23: ='2. ICM_Costs'!G182 -> 255711.1284 | K23: ='2. ICM_Costs'!I182 -> 0
D24: Retirements/Removals (if applicable)
D25: Closing Balance | I25: =I22+I23-I24 -> 255711.1284 | K25: =K22+K23-K24 -> 255711.1284 | M25: =M22+M23-M24 -> 255711.1284 | O25: =O22+O23-O24 -> 255711.1284 | Q25: =Q22+Q23-Q24 -> 255711.1284 | S25: =S22+S23-S24 -> 255711.1284 | U25: =U22+U23-U24 -> 255711.1284 | W25: =W22+W23-W24 -> 255711.1284
C27: Accumulated Depreciation
D28: Opening Balance | K28: =I31 -> -6729.240221 | M28: =K31 -> -13458.48044 | O28: =M31 -> -20187.72066 | Q28: =O31 -> -26916.96088 | S28: =Q31 -> -33646.20111 | U28: =S31 -> -40375.44133 | W28: =U31 -> -47681.47357
D29: Amortization expense during year | I29: =IF(ISERROR(-(I23/('3. Cost_of_Service_Parameters'!G45)+MIN((I22/'3. Cost_of_Service_Parameters'!G45),(I22+I28)))), 0, -(I23/('3. Cost_of_Service_Parameters'!G45)+MIN((I22/'3. Cost_of_Service_Parameters'!G45),(I22+I28)))) -> -6729.240221 | K29: =IF(ISERROR(-(K23/('3. Cost_of_Service_Parameters'!I45)+MIN((K22/'3. Cost_of_Service_Parameters'!I45),(K22+K28)))), 0, -(K23/('3. Cost_of_Service_Parameters'!I45)+MIN((K22/'3. Cost_of_Service_Parameters'!I45),(K22+K28)))) -> -6729.240221 | M29: =IF(ISERROR(-(M23/('3. Cost_of_Service_Parameters'!K45)+MIN((M22/'3. Cost_of_Service_Parameters'!K45),(M22+M28)))), 0, -(M23/('3. Cost_of_Service_Parameters'!K45)+MIN((M22/'3. Cost_of_Service_Parameters'!K45),(M22+M28)))) -> -6729.240221 | O29: =IF(ISERROR(-(O23/('3. Cost_of_Service_Parameters'!M45)+MIN((O22/'3. Cost_of_Service_Parameters'!M45),(O22+O28)))), 0, -(O23/('3. Cost_of_Service_Parameters'!M45)+MIN((O22/'3. Cost_of_Service_Parameters'!M45),(O22+O28)))) -> -6729.240221 | Q29: =IF(ISERROR(-(Q23/('3. Cost_of_Service_Parameters'!O45)+MIN((Q22/'3. Cost_of_Service_Parameters'!O45),(Q22+Q28)))), 0, -(Q23/('3. Cost_of_Service_Parameters'!O45)+MIN((Q22/'3. Cost_of_Service_Parameters'!O45),(Q22+Q28)))) -> -6729.240221 | S29: =IF(ISERROR(-(S23/('3. Cost_of_Service_Parameters'!Q45)+MIN((S22/'3. Cost_of_Service_Parameters'!Q45),(S22+S28)))), 0, -(S23/('3. Cost_of_Service_Parameters'!Q45)+MIN((S22/'3. Cost_of_Service_Parameters'!Q45),(S22+S28)))) -> -6729.240221 | U29: =IF(ISERROR(-(U23/('3. Cost_of_Service_Parameters'!S45)+MIN((U22/'3. Cost_of_Service_Parameters'!S45),(U22+U28)))), 0, -(U23/('3. Cost_of_Service_Parameters'!S45)+MIN((U22/'3. Cost_of_Service_Parameters'!S45),(U22+U28)))) -> -7306.03224 | W29: =IF(ISERROR(-(W23/('3. Cost_of_Service_Parameters'!U45)+MIN((W22/'3. Cost_of_Service_Parameters'!U45),(W22+W28)))), 0, -(W23/('3. Cost_of_Service_Parameters'!U45)+MIN((W22/'3. Cost_of_Service_Parameters'!U45),(W22+W28)))) -> -7306.03224
D30: Retirements/Removals (if applicable)
D31: Closing Balance | I31: =I28+I29-I30 -> -6729.240221 | K31: =K28+K29-K30 -> -13458.48044 | M31: =M28+M29-M30 -> -20187.72066 | O31: =O28+O29-O30 -> -26916.96088 | Q31: =Q28+Q29-Q30 -> -33646.20111 | S31: =S28+S29-S30 -> -40375.44133 | U31: =U28+U29-U30 -> -47681.47357 | W31: =W28+W29-W30 -> -54987.50581
C33: Net Book Value
D34: Opening Balance | I34: =I22+I28 -> 0 | K34: =I35 -> 248981.8882 | M34: =K35 -> 242252.648 | O34: =M35 -> 235523.4077 | Q34: =O35 -> 228794.1675 | S34: =Q35 -> 222064.9273 | U34: =S35 -> 215335.6871 | W34: =U35 -> 208029.6548
D35: Closing Balance | I35: =I25+I31 -> 248981.8882 | K35: =K25+K31 -> 242252.648 | M35: =M25+M31 -> 235523.4077 | O35: =O25+O31 -> 228794.1675 | Q35: =Q25+Q31 -> 222064.9273 | S35: =S25+S31 -> 215335.6871 | U35: =U25+U31 -> 208029.6548 | W35: =W25+W31 -> 200723.6226
D36: Incremental CAPEX | I36: =I35 -> 248981.8882 | K36: =AVERAGE(K34:K35) -> 245617.2681 | M36: =AVERAGE(M34:M35) -> 238888.0278 | O36: =AVERAGE(O34:O35) -> 232158.7876 | Q36: =AVERAGE(Q34:Q35) -> 225429.5474 | S36: =AVERAGE(S34:S35) -> 218700.3072 | U36: =AVERAGE(U34:U35) -> 211682.671 | W36: =AVERAGE(W34:W35) -> 204376.6387
B38: Net Fixed Assets - Concrete Poles
C40: Gross Book Value
D41: Opening Balance | K41: =I44 -> 582614.274 | M41: =K44 -> 582614.274 | O41: =M44 -> 582614.274 | Q41: =O44 -> 582614.274 | S41: =Q44 -> 582614.274 | U41: =S44 -> 582614.274 | W41: =U44 -> 582614.274
D42: Capital Additions during year (from ICM Costs) | I42: ='2. ICM_Costs'!G184 -> 582614.274 | K42: ='2. ICM_Costs'!I184 -> 0
D43: Retirements/Removals (if applicable)
D44: Closing Balance | I44: =I41+I42-I43 -> 582614.274 | K44: =K41+K42-K43 -> 582614.274 | M44: =M41+M42-M43 -> 582614.274 | O44: =O41+O42-O43 -> 582614.274 | Q44: =Q41+Q42-Q43 -> 582614.274 | S44: =S41+S42-S43 -> 582614.274 | U44: =U41+U42-U43 -> 582614.274 | W44: =W41+W42-W43 -> 582614.274
C46: Accumulated Depreciation
D47: Opening Balance | K47: =I50 -> -11423.80929 | M47: =K50 -> -22847.61859 | O47: =M50 -> -34271.42788 | Q47: =O50 -> -45695.23718 | S47: =Q50 -> -57119.04647 | U47: =S50 -> -68542.85576 | W47: =U50 -> -78253.09366
D48: Amortization expense during year | I48: =IF(ISERROR(-(I42/('3. Cost_of_Service_Parameters'!G47)+MIN((I41/'3. Cost_of_Service_Parameters'!G47),(I41+I47)))), 0, -(I42/('3. Cost_of_Service_Parameters'!G47)+MIN((I41/'3. Cost_of_Service_Parameters'!G47),(I41+I47)))) -> -11423.80929 | K48: =IF(ISERROR(-(K42/('3. Cost_of_Service_Parameters'!I47*2)+MIN((K41/'3. Cost_of_Service_Parameters'!I47),(K41+K47)))), 0, -(K42/('3. Cost_of_Service_Parameters'!I47*2)+MIN((K41/'3. Cost_of_Service_Parameters'!I47),(K41+K47)))) -> -11423.80929 | M48: =IF(ISERROR(-(M42/('3. Cost_of_Service_Parameters'!K47*2)+MIN((M41/'3. Cost_of_Service_Parameters'!K47),(M41+M47)))), 0, -(M42/('3. Cost_of_Service_Parameters'!K47*2)+MIN((M41/'3. Cost_of_Service_Parameters'!K47),(M41+M47)))) -> -11423.80929 | O48: =IF(ISERROR(-(O42/('3. Cost_of_Service_Parameters'!M47*2)+MIN((O41/'3. Cost_of_Service_Parameters'!M47),(O41+O47)))), 0, -(O42/('3. Cost_of_Service_Parameters'!M47*2)+MIN((O41/'3. Cost_of_Service_Parameters'!M47),(O41+O47)))) -> -11423.80929 | Q48: =IF(ISERROR(-(Q42/('3. Cost_of_Service_Parameters'!O47*2)+MIN((Q41/'3. Cost_of_Service_Parameters'!O47),(Q41+Q47)))), 0, -(Q42/('3. Cost_of_Service_Parameters'!O47*2)+MIN((Q41/'3. Cost_of_Service_Parameters'!O47),(Q41+Q47)))) -> -11423.80929 | S48: =IF(ISERROR(-(S42/('3. Cost_of_Service_Parameters'!Q47*2)+MIN((S41/'3. Cost_of_Service_Parameters'!Q47),(S41+S47)))), 0, -(S42/('3. Cost_of_Service_Parameters'!Q47*2)+MIN((S41/'3. Cost_of_Service_Parameters'!Q47),(S41+S47)))) -> -11423.80929 | U48: =IF(ISERROR(-(U42/('3. Cost_of_Service_Parameters'!S47*2)+MIN((U41/'3. Cost_of_Service_Parameters'!S47),(U41+U47)))), 0, -(U42/('3. Cost_of_Service_Parameters'!S47*2)+MIN((U41/'3. Cost_of_Service_Parameters'!S47),(U41+U47)))) -> -9710.2379 | W48: =IF(ISERROR(-(W42/('3. Cost_of_Service_Parameters'!U47*2)+MIN((W41/'3. Cost_of_Service_Parameters'!U47),(W41+W47)))), 0, -(W42/('3. Cost_of_Service_Parameters'!U47*2)+MIN((W41/'3. Cost_of_Service_Parameters'!U47),(W41+W47)))) -> -9710.2379
D49: Retirements/Removals (if applicable)
D50: Closing Balance | I50: =I47+I48-I49 -> -11423.80929 | K50: =K47+K48-K49 -> -22847.61859 | M50: =M47+M48-M49 -> -34271.42788 | O50: =O47+O48-O49 -> -45695.23718 | Q50: =Q47+Q48-Q49 -> -57119.04647 | S50: =S47+S48-S49 -> -68542.85576 | U50: =U47+U48-U49 -> -78253.09366 | W50: =W47+W48-W49 -> -87963.33156
C52: Net Book Value
D53: Opening Balance | I53: =I41+I47 -> 0 | K53: =I54 -> 571190.4647 | M53: =K54 -> 559766.6554 | O53: =M54 -> 548342.8461 | Q53: =O54 -> 536919.0368 | S53: =Q54 -> 525495.2275 | U53: =S54 -> 514071.4182 | W53: =U54 -> 504361.1803
D54: Closing Balance | I54: =I44+I50 -> 571190.4647 | K54: =K44+K50 -> 559766.6554 | M54: =M44+M50 -> 548342.8461 | O54: =O44+O50 -> 536919.0368 | Q54: =Q44+Q50 -> 525495.2275 | S54: =S44+S50 -> 514071.4182 | U54: =U44+U50 -> 504361.1803 | W54: =W44+W50 -> 494650.9424
D55: Incremental CAPEX | I55: =I54 -> 571190.4647 | K55: =AVERAGE(K53:K54) -> 565478.5601 | M55: =AVERAGE(M53:M54) -> 554054.7508 | O55: =AVERAGE(O53:O54) -> 542630.9415 | Q55: =AVERAGE(Q53:Q54) -> 531207.1322 | S55: =AVERAGE(S53:S54) -> 519783.3229 | U55: =AVERAGE(U53:U54) -> 509216.2993 | W55: =AVERAGE(W53:W54) -> 499506.0614
B57: Net Fixed Assets - Wood Poles
C59: Gross Book Value
D60: Opening Balance | K60: =I63 -> 980064.844 | M60: =K63 -> 980064.844 | O60: =M63 -> 980064.844 | Q60: =O63 -> 980064.844 | S60: =Q63 -> 980064.844 | U60: =S63 -> 980064.844 | W60: =U63 -> 980064.844
D61: Capital Additions during year (from ICM Costs) | I61: ='2. ICM_Costs'!G186 -> 980064.844
D62: Retirements/Removals (if applicable)
D63: Closing Balance | I63: =I60+I61-I62 -> 980064.844 | K63: =K60+K61-K62 -> 980064.844 | M63: =M60+M61-M62 -> 980064.844 | O63: =O60+O61-O62 -> 980064.844 | Q63: =Q60+Q61-Q62 -> 980064.844 | S63: =S60+S61-S62 -> 980064.844 | U63: =U60+U61-U62 -> 980064.844 | W63: =W60+W61-W62 -> 980064.844
C65: Accumulated Depreciation
D66: Opening Balance | K66: =I69 -> -22274.201 | M66: =K69 -> -44548.402 | O66: =M69 -> -66822.603 | Q66: =O69 -> -89096.804 | S66: =Q69 -> -111371.005 | U66: =S69 -> -133645.206 | W66: =U69 -> -155424.4248
D67: Amortization expense during year | I67: =IF(ISERROR(-(I61/('3. Cost_of_Service_Parameters'!G49)+MIN((I60/'3. Cost_of_Service_Parameters'!G49),(I60+I66)))), 0, -(I61/('3. Cost_of_Service_Parameters'!G49)+MIN((I60/'3. Cost_of_Service_Parameters'!G49),(I60+I66)))) -> -22274.201 | K67: =IF(ISERROR(-(K61/('3. Cost_of_Service_Parameters'!I49*2)+MIN((K60/'3. Cost_of_Service_Parameters'!I49),(K60+K66)))), 0, -(K61/('3. Cost_of_Service_Parameters'!I49*2)+MIN((K60/'3. Cost_of_Service_Parameters'!I49),(K60+K66)))) -> -22274.201 | M67: =IF(ISERROR(-(M61/('3. Cost_of_Service_Parameters'!K49*2)+MIN((M60/'3. Cost_of_Service_Parameters'!K49),(M60+M66)))), 0, -(M61/('3. Cost_of_Service_Parameters'!K49*2)+MIN((M60/'3. Cost_of_Service_Parameters'!K49),(M60+M66)))) -> -22274.201 | O67: =IF(ISERROR(-(O61/('3. Cost_of_Service_Parameters'!M49*2)+MIN((O60/'3. Cost_of_Service_Parameters'!M49),(O60+O66)))), 0, -(O61/('3. Cost_of_Service_Parameters'!M49*2)+MIN((O60/'3. Cost_of_Service_Parameters'!M49),(O60+O66)))) -> -22274.201 | Q67: =IF(ISERROR(-(Q61/('3. Cost_of_Service_Parameters'!O49*2)+MIN((Q60/'3. Cost_of_Service_Parameters'!O49),(Q60+Q66)))), 0, -(Q61/('3. Cost_of_Service_Parameters'!O49*2)+MIN((Q60/'3. Cost_of_Service_Parameters'!O49),(Q60+Q66)))) -> -22274.201 | S67: =IF(ISERROR(-(S61/('3. Cost_of_Service_Parameters'!Q49*2)+MIN((S60/'3. Cost_of_Service_Parameters'!Q49),(S60+S66)))), 0, -(S61/('3. Cost_of_Service_Parameters'!Q49*2)+MIN((S60/'3. Cost_of_Service_Parameters'!Q49),(S60+S66)))) -> -22274.201 | U67: =IF(ISERROR(-(U61/('3. Cost_of_Service_Parameters'!S49*2)+MIN((U60/'3. Cost_of_Service_Parameters'!S49),(U60+U66)))), 0, -(U61/('3. Cost_of_Service_Parameters'!S49*2)+MIN((U60/'3. Cost_of_Service_Parameters'!S49),(U60+U66)))) -> -21779.21876 | W67: =IF(ISERROR(-(W61/('3. Cost_of_Service_Parameters'!U49*2)+MIN((W60/'3. Cost_of_Service_Parameters'!U49),(W60+W66)))), 0, -(W61/('3. Cost_of_Service_Parameters'!U49*2)+MIN((W60/'3. Cost_of_Service_Parameters'!U49),(W60+W66)))) -> -21779.21876
D68: Retirements/Removals (if applicable)
D69: Closing Balance | I69: =I66+I67-I68 -> -22274.201 | K69: =K66+K67-K68 -> -44548.402 | M69: =M66+M67-M68 -> -66822.603 | O69: =O66+O67-O68 -> -89096.804 | Q69: =Q66+Q67-Q68 -> -111371.005 | S69: =S66+S67-S68 -> -133645.206 | U69: =U66+U67-U68 -> -155424.4248 | W69: =W66+W67-W68 -> -177203.6435
C71: Net Book Value
D72: Opening Balance | I72: =I60+I66 -> 0 | K72: =I73 -> 957790.643 | M72: =K73 -> 935516.442 | O72: =M73 -> 913242.241 | Q72: =O73 -> 890968.04 | S72: =Q73 -> 868693.839 | U72: =S73 -> 846419.638 | W72: =U73 -> 824640.4192
D73: Closing Balance | I73: =I63+I69 -> 957790.643 | K73: =K63+K69 -> 935516.442 | M73: =M63+M69 -> 913242.241 | O73: =O63+O69 -> 890968.04 | Q73: =Q63+Q69 -> 868693.839 | S73: =S63+S69 -> 846419.638 | U73: =U63+U69 -> 824640.4192 | W73: =W63+W69 -> 802861.2005
D74: Incremental CAPEX | I74: =I73 -> 957790.643 | K74: =AVERAGE(K72:K73) -> 946653.5425 | M74: =AVERAGE(M72:M73) -> 924379.3415 | O74: =AVERAGE(O72:O73) -> 902105.1405 | Q74: =AVERAGE(Q72:Q73) -> 879830.9395 | S74: =AVERAGE(S72:S73) -> 857556.7385 | U74: =AVERAGE(U72:U73) -> 835530.0286 | W74: =AVERAGE(W72:W73) -> 813750.8099
B76: Net Fixed Assets - OH Transformers
C78: Gross Book Value
D79: Opening Balance | K79: =I82 -> 284123.476 | M79: =K82 -> 284123.476 | O79: =M82 -> 284123.476 | Q79: =O82 -> 284123.476 | S79: =Q82 -> 284123.476 | U79: =S82 -> 284123.476 | W79: =U82 -> 284123.476
D80: Capital Additions during year (from ICM Costs) | I80: ='2. ICM_Costs'!G188 -> 284123.476
D81: Retirements/Removals (if applicable)
D82: Closing Balance | I82: =I79+I80-I81 -> 284123.476 | K82: =K79+K80-K81 -> 284123.476 | M82: =M79+M80-M81 -> 284123.476 | O82: =O79+O80-O81 -> 284123.476 | Q82: =Q79+Q80-Q81 -> 284123.476 | S82: =S79+S80-S81 -> 284123.476 | U82: =U79+U80-U81 -> 284123.476 | W82: =W79+W80-W81 -> 284123.476
C84: Accumulated Depreciation
D85: Opening Balance | K85: =I88 -> -6929.840878 | M85: =K88 -> -13859.68176 | O85: =M88 -> -20789.52263 | Q85: =O88 -> -27719.36351 | S85: =Q88 -> -34649.20439 | U85: =S88 -> -41579.04527 | W85: =U88 -> -47892.90029
D86: Amortization expense during year | I86: =IF(ISERROR(-(I80/('3. Cost_of_Service_Parameters'!G51)+MIN((I79/'3. Cost_of_Service_Parameters'!G51),(I79+I85)))), 0, -(I80/('3. Cost_of_Service_Parameters'!G51)+MIN((I79/'3. Cost_of_Service_Parameters'!G51),(I79+I85)))) -> -6929.840878 | K86: =IF(ISERROR(-(K80/('3. Cost_of_Service_Parameters'!I51*2)+MIN((K79/'3. Cost_of_Service_Parameters'!I51),(K79+K85)))), 0, -(K80/('3. Cost_of_Service_Parameters'!I51*2)+MIN((K79/'3. Cost_of_Service_Parameters'!I51),(K79+K85)))) -> -6929.840878 | M86: =IF(ISERROR(-(M80/('3. Cost_of_Service_Parameters'!K51*2)+MIN((M79/'3. Cost_of_Service_Parameters'!K51),(M79+M85)))), 0, -(M80/('3. Cost_of_Service_Parameters'!K51*2)+MIN((M79/'3. Cost_of_Service_Parameters'!K51),(M79+M85)))) -> -6929.840878 | O86: =IF(ISERROR(-(O80/('3. Cost_of_Service_Parameters'!M51*2)+MIN((O79/'3. Cost_of_Service_Parameters'!M51),(O79+O85)))), 0, -(O80/('3. Cost_of_Service_Parameters'!M51*2)+MIN((O79/'3. Cost_of_Service_Parameters'!M51),(O79+O85)))) -> -6929.840878 | Q86: =IF(ISERROR(-(Q80/('3. Cost_of_Service_Parameters'!O51*2)+MIN((Q79/'3. Cost_of_Service_Parameters'!O51),(Q79+Q85)))), 0, -(Q80/('3. Cost_of_Service_Parameters'!O51*2)+MIN((Q79/'3. Cost_of_Service_Parameters'!O51),(Q79+Q85)))) -> -6929.840878 | S86: =IF(ISERROR(-(S80/('3. Cost_of_Service_Parameters'!Q51*2)+MIN((S79/'3. Cost_of_Service_Parameters'!Q51),(S79+S85)))), 0, -(S80/('3. Cost_of_Service_Parameters'!Q51*2)+MIN((S79/'3. Cost_of_Service_Parameters'!Q51),(S79+S85)))) -> -6929.840878 | U86: =IF(ISERROR(-(U80/('3. Cost_of_Service_Parameters'!S51*2)+MIN((U79/'3. Cost_of_Service_Parameters'!S51),(U79+U85)))), 0, -(U80/('3. Cost_of_Service_Parameters'!S51*2)+MIN((U79/'3. Cost_of_Service_Parameters'!S51),(U79+U85)))) -> -6313.855022 | W86: =IF(ISERROR(-(W80/('3. Cost_of_Service_Parameters'!U51*2)+MIN((W79/'3. Cost_of_Service_Parameters'!U51),(W79+W85)))), 0, -(W80/('3. Cost_of_Service_Parameters'!U51*2)+MIN((W79/'3. Cost_of_Service_Parameters'!U51),(W79+W85)))) -> -6313.855022
D87: Retirements/Removals (if applicable)
D88: Closing Balance | I88: =I85+I86-I87 -> -6929.840878 | K88: =K85+K86-K87 -> -13859.68176 | M88: =M85+M86-M87 -> -20789.52263 | O88: =O85+O86-O87 -> -27719.36351 | Q88: =Q85+Q86-Q87 -> -34649.20439 | S88: =S85+S86-S87 -> -41579.04527 | U88: =U85+U86-U87 -> -47892.90029 | W88: =W85+W86-W87 -> -54206.75531
C90: Net Book Value
D91: Opening Balance | I91: =I79+I85 -> 0 | K91: =I92 -> 277193.6351 | M91: =K92 -> 270263.7942 | O91: =M92 -> 263333.9534 | Q91: =O92 -> 256404.1125 | S91: =Q92 -> 249474.2716 | U91: =S92 -> 242544.4307 | W91: =U92 -> 236230.5757
D92: Closing Balance | I92: =I82+I88 -> 277193.6351 | K92: =K82+K88 -> 270263.7942 | M92: =M82+M88 -> 263333.9534 | O92: =O82+O88 -> 256404.1125 | Q92: =Q82+Q88 -> 249474.2716 | S92: =S82+S88 -> 242544.4307 | U92: =U82+U88 -> 236230.5757 | W92: =W82+W88 -> 229916.7207
D93: Incremental CAPEX | I93: =I92 -> 277193.6351 | K93: =AVERAGE(K91:K92) -> 273728.7147 | M93: =AVERAGE(M91:M92) -> 266798.8738 | O93: =AVERAGE(O91:O92) -> 259869.0329 | Q93: =AVERAGE(Q91:Q92) -> 252939.192 | S93: =AVERAGE(S91:S92) -> 246009.3512 | U93: =AVERAGE(U91:U92) -> 239387.5032 | W93: =AVERAGE(W91:W92) -> 233073.6482
B95: Net Fixed Assets - OH Prim Cond & Dev
C97: Gross Book Value
D98: Opening Balance | K98: =I101 -> 426185.214 | M98: =K101 -> 426185.214 | O98: =M101 -> 426185.214 | Q98: =O101 -> 426185.214 | S98: =Q101 -> 426185.214 | U98: =S101 -> 426185.214 | W98: =U101 -> 426185.214
D99: Capital Additions during year (from ICM Costs) | I99: ='2. ICM_Costs'!G190 -> 426185.214 | K99: ='2. ICM_Costs'!I190 -> 0
D100: Retirements/Removals (if applicable)
D101: Closing Balance | I101: =I98+I99-I100 -> 426185.214 | K101: =K98+K99-K100 -> 426185.214 | M101: =M98+M99-M100 -> 426185.214 | O101: =O98+O99-O100 -> 426185.214 | Q101: =Q98+Q99-Q100 -> 426185.214 | S101: =S98+S99-S100 -> 426185.214 | U101: =U98+U99-U100 -> 426185.214 | W101: =W98+W99-W100 -> 426185.214
C103: Accumulated Depreciation
D104: Opening Balance | K104: =I107 -> -9470.782533 | M104: =K107 -> -18941.56507 | O104: =M107 -> -28412.3476 | Q104: =O107 -> -37883.13013 | S104: =Q107 -> -47353.91267 | U104: =S107 -> -56824.6952 | W104: =U107 -> -65348.39948
D105: Amortization expense during year | I105: =IF(ISERROR(-(I99/('3. Cost_of_Service_Parameters'!G53)+MIN((I98/'3. Cost_of_Service_Parameters'!G53),(I98+I104)))), 0, -(I99/('3. Cost_of_Service_Parameters'!G53)+MIN((I98/'3. Cost_of_Service_Parameters'!G53),(I98+I104)))) -> -9470.782533 | K105: =IF(ISERROR(-(K99/('3. Cost_of_Service_Parameters'!I53*2)+MIN((K98/'3. Cost_of_Service_Parameters'!I53),(K98+K104)))), 0, -(K99/('3. Cost_of_Service_Parameters'!I53*2)+MIN((K98/'3. Cost_of_Service_Parameters'!I53),(K98+K104)))) -> -9470.782533 | M105: =IF(ISERROR(-(M99/('3. Cost_of_Service_Parameters'!K53*2)+MIN((M98/'3. Cost_of_Service_Parameters'!K53),(M98+M104)))), 0, -(M99/('3. Cost_of_Service_Parameters'!K53*2)+MIN((M98/'3. Cost_of_Service_Parameters'!K53),(M98+M104)))) -> -9470.782533 | O105: =IF(ISERROR(-(O99/('3. Cost_of_Service_Parameters'!M53*2)+MIN((O98/'3. Cost_of_Service_Parameters'!M53),(O98+O104)))), 0, -(O99/('3. Cost_of_Service_Parameters'!M53*2)+MIN((O98/'3. Cost_of_Service_Parameters'!M53),(O98+O104)))) -> -9470.782533 | Q105: =IF(ISERROR(-(Q99/('3. Cost_of_Service_Parameters'!O53*2)+MIN((Q98/'3. Cost_of_Service_Parameters'!O53),(Q98+Q104)))), 0, -(Q99/('3. Cost_of_Service_Parameters'!O53*2)+MIN((Q98/'3. Cost_of_Service_Parameters'!O53),(Q98+Q104)))) -> -9470.782533 | S105: =IF(ISERROR(-(S99/('3. Cost_of_Service_Parameters'!Q53*2)+MIN((S98/'3. Cost_of_Service_Parameters'!Q53),(S98+S104)))), 0, -(S99/('3. Cost_of_Service_Parameters'!Q53*2)+MIN((S98/'3. Cost_of_Service_Parameters'!Q53),(S98+S104)))) -> -9470.782533 | U105: =IF(ISERROR(-(U99/('3. Cost_of_Service_Parameters'!S53*2)+MIN((U98/'3. Cost_of_Service_Parameters'!S53),(U98+U104)))), 0, -(U99/('3. Cost_of_Service_Parameters'!S53*2)+MIN((U98/'3. Cost_of_Service_Parameters'!S53),(U98+U104)))) -> -8523.70428 | W105: =IF(ISERROR(-(W99/('3. Cost_of_Service_Parameters'!U53*2)+MIN((W98/'3. Cost_of_Service_Parameters'!U53),(W98+W104)))), 0, -(W99/('3. Cost_of_Service_Parameters'!U53*2)+MIN((W98/'3. Cost_of_Service_Parameters'!U53),(W98+W104)))) -> -8523.70428
D106: Retirements/Removals (if applicable)
D107: Closing Balance | I107: =I104+I105-I106 -> -9470.782533 | K107: =K104+K105-K106 -> -18941.56507 | M107: =M104+M105-M106 -> -28412.3476 | O107: =O104+O105-O106 -> -37883.13013 | Q107: =Q104+Q105-Q106 -> -47353.91267 | S107: =S104+S105-S106 -> -56824.6952 | U107: =U104+U105-U106 -> -65348.39948 | W107: =W104+W105-W106 -> -73872.10376
C109: Net Book Value
D110: Opening Balance | I110: =I98+I104 -> 0 | K110: =I111 -> 416714.4315 | M110: =K111 -> 407243.6489 | O110: =M111 -> 397772.8664 | Q110: =O111 -> 388302.0839 | S110: =Q111 -> 378831.3013 | U110: =S111 -> 369360.5188 | W110: =U111 -> 360836.8145
D111: Closing Balance | I111: =I101+I107 -> 416714.4315 | K111: =K101+K107 -> 407243.6489 | M111: =M101+M107 -> 397772.8664 | O111: =O101+O107 -> 388302.0839 | Q111: =Q101+Q107 -> 378831.3013 | S111: =S101+S107 -> 369360.5188 | U111: =U101+U107 -> 360836.8145 | W111: =W101+W107 -> 352313.1102
D112: Incremental CAPEX | I112: =I111 -> 416714.4315 | K112: =AVERAGE(K110:K111) -> 411979.0402 | M112: =AVERAGE(M110:M111) -> 402508.2577 | O112: =AVERAGE(O110:O111) -> 393037.4751 | Q112: =AVERAGE(Q110:Q111) -> 383566.6926 | S112: =AVERAGE(S110:S111) -> 374095.9101 | U112: =AVERAGE(U110:U111) -> 365098.6667 | W112: =AVERAGE(W110:W111) -> 356574.9624
B114: Net Fixed Assets - OH Sec Cond & Dev
C116: Gross Book Value
D117: Opening Balance | K117: =I120 -> 142061.738 | M117: =K120 -> 142061.738 | O117: =M120 -> 142061.738 | Q117: =O120 -> 142061.738 | S117: =Q120 -> 142061.738 | U117: =S120 -> 142061.738 | W117: =U120 -> 142061.738
D118: Capital Additions during year (from ICM Costs) | I118: ='2. ICM_Costs'!G192 -> 142061.738 | K118: ='2. ICM_Costs'!I192 -> 0
D119: Retirements/Removals (if applicable)
D120: Closing Balance | I120: =I117+I118-I119 -> 142061.738 | K120: =K117+K118-K119 -> 142061.738 | M120: =M117+M118-M119 -> 142061.738 | O120: =O117+O118-O119 -> 142061.738 | Q120: =Q117+Q118-Q119 -> 142061.738 | S120: =S117+S118-S119 -> 142061.738 | U120: =U117+U118-U119 -> 142061.738 | W120: =W117+W118-W119 -> 142061.738
C122: Accumulated Depreciation
D123: Opening Balance | K123: =I126 -> -2959.619542 | M123: =K126 -> -5919.239083 | O123: =M126 -> -8878.858625 | Q123: =O126 -> -11838.47817 | S123: =Q126 -> -14798.09771 | U123: =S126 -> -17757.71725 | W123: =U126 -> -20598.95201
D124: Amortization expense during year | I124: =IF(ISERROR(-(I118/('3. Cost_of_Service_Parameters'!G55)+MIN((I117/'3. Cost_of_Service_Parameters'!G55),(I117+I123)))), 0, -(I118/('3. Cost_of_Service_Parameters'!G55)+MIN((I117/'3. Cost_of_Service_Parameters'!G55),(I117+I123)))) -> -2959.619542 | K124: =IF(ISERROR(-(K118/('3. Cost_of_Service_Parameters'!I55*2)+MIN((K117/'3. Cost_of_Service_Parameters'!I55),(K117+K123)))), 0, -(K118/('3. Cost_of_Service_Parameters'!I55*2)+MIN((K117/'3. Cost_of_Service_Parameters'!I55),(K117+K123)))) -> -2959.619542 | M124: =IF(ISERROR(-(M118/('3. Cost_of_Service_Parameters'!K55*2)+MIN((M117/'3. Cost_of_Service_Parameters'!K55),(M117+M123)))), 0, -(M118/('3. Cost_of_Service_Parameters'!K55*2)+MIN((M117/'3. Cost_of_Service_Parameters'!K55),(M117+M123)))) -> -2959.619542 | O124: =IF(ISERROR(-(O118/('3. Cost_of_Service_Parameters'!M55*2)+MIN((O117/'3. Cost_of_Service_Parameters'!M55),(O117+O123)))), 0, -(O118/('3. Cost_of_Service_Parameters'!M55*2)+MIN((O117/'3. Cost_of_Service_Parameters'!M55),(O117+O123)))) -> -2959.619542 | Q124: =IF(ISERROR(-(Q118/('3. Cost_of_Service_Parameters'!O55*2)+MIN((Q117/'3. Cost_of_Service_Parameters'!O55),(Q117+Q123)))), 0, -(Q118/('3. Cost_of_Service_Parameters'!O55*2)+MIN((Q117/'3. Cost_of_Service_Parameters'!O55),(Q117+Q123)))) -> -2959.619542 | S124: =IF(ISERROR(-(S118/('3. Cost_of_Service_Parameters'!Q55*2)+MIN((S117/'3. Cost_of_Service_Parameters'!Q55),(S117+S123)))), 0, -(S118/('3. Cost_of_Service_Parameters'!Q55*2)+MIN((S117/'3. Cost_of_Service_Parameters'!Q55),(S117+S123)))) -> -2959.619542 | U124: =IF(ISERROR(-(U118/('3. Cost_of_Service_Parameters'!S55*2)+MIN((U117/'3. Cost_of_Service_Parameters'!S55),(U117+U123)))), 0, -(U118/('3. Cost_of_Service_Parameters'!S55*2)+MIN((U117/'3. Cost_of_Service_Parameters'!S55),(U117+U123)))) -> -2841.23476 | W124: =IF(ISERROR(-(W118/('3. Cost_of_Service_Parameters'!U55*2)+MIN((W117/'3. Cost_of_Service_Parameters'!U55),(W117+W123)))), 0, -(W118/('3. Cost_of_Service_Parameters'!U55*2)+MIN((W117/'3. Cost_of_Service_Parameters'!U55),(W117+W123)))) -> -2841.23476
D125: Retirements/Removals (if applicable)
D126: Closing Balance | I126: =I123+I124-I125 -> -2959.619542 | K126: =K123+K124-K125 -> -5919.239083 | M126: =M123+M124-M125 -> -8878.858625 | O126: =O123+O124-O125 -> -11838.47817 | Q126: =Q123+Q124-Q125 -> -14798.09771 | S126: =S123+S124-S125 -> -17757.71725 | U126: =U123+U124-U125 -> -20598.95201 | W126: =W123+W124-W125 -> -23440.18677
C128: Net Book Value
D129: Opening Balance | I129: =I117+I123 -> 0 | K129: =I130 -> 139102.1185 | M129: =K130 -> 136142.4989 | O129: =M130 -> 133182.8794 | Q129: =O130 -> 130223.2598 | S129: =Q130 -> 127263.6403 | U129: =S130 -> 124304.0208 | W129: =U130 -> 121462.786
D130: Closing Balance | I130: =I120+I126 -> 139102.1185 | K130: =K120+K126 -> 136142.4989 | M130: =M120+M126 -> 133182.8794 | O130: =O120+O126 -> 130223.2598 | Q130: =Q120+Q126 -> 127263.6403 | S130: =S120+S126 -> 124304.0208 | U130: =U120+U126 -> 121462.786 | W130: =W120+W126 -> 118621.5512
D131: Incremental CAPEX | I131: =I130 -> 139102.1185 | K131: =AVERAGE(K129:K130) -> 137622.3087 | M131: =AVERAGE(M129:M130) -> 134662.6891 | O131: =AVERAGE(O129:O130) -> 131703.0696 | Q131: =AVERAGE(Q129:Q130) -> 128743.4501 | S131: =AVERAGE(S129:S130) -> 125783.8305 | U131: =AVERAGE(U129:U130) -> 122883.4034 | W131: =AVERAGE(W129:W130) -> 120042.1686
B133: Net Fixed Assets - UG Transformers
C135: Gross Book Value
D136: Opening Balance | K136: =I139 -> 0 | M136: =K139 -> 0 | O136: =M139 -> 0 | Q136: =O139 -> 0 | S136: =Q139 -> 0 | U136: =S139 -> 0 | W136: =U139 -> 0
D137: Capital Additions during year (from ICM Costs) | I137: ='2. ICM_Costs'!G194 -> 0 | K137: ='2. ICM_Costs'!I194 -> 0
D138: Retirements/Removals (if applicable)
D139: Closing Balance | I139: =I136+I137-I138 -> 0 | K139: =K136+K137-K138 -> 0 | M139: =M136+M137-M138 -> 0 | O139: =O136+O137-O138 -> 0 | Q139: =Q136+Q137-Q138 -> 0 | S139: =S136+S137-S138 -> 0 | U139: =U136+U137-U138 -> 0 | W139: =W136+W137-W138 -> 0
C141: Accumulated Depreciation
D142: Opening Balance | K142: =I145 -> 0 | M142: =K145 -> 0 | O142: =M145 -> 0 | Q142: =O145 -> 0 | S142: =Q145 -> 0 | U142: =S145 -> 0 | W142: =U145 -> 0
D143: Amortization expense during year | I143: =IF(ISERROR(-(I137/('3. Cost_of_Service_Parameters'!G57)+MIN((I136/'3. Cost_of_Service_Parameters'!G57),(I136+I142)))), 0, -(I137/('3. Cost_of_Service_Parameters'!G57)+MIN((I136/'3. Cost_of_Service_Parameters'!G57),(I136+I142)))) -> 0 | K143: =IF(ISERROR(-(K137/('3. Cost_of_Service_Parameters'!I57*2)+MIN((K136/'3. Cost_of_Service_Parameters'!I57),(K136+K142)))), 0, -(K137/('3. Cost_of_Service_Parameters'!I57*2)+MIN((K136/'3. Cost_of_Service_Parameters'!I57),(K136+K142)))) -> 0 | M143: =IF(ISERROR(-(M137/('3. Cost_of_Service_Parameters'!K57*2)+MIN((M136/'3. Cost_of_Service_Parameters'!K57),(M136+M142)))), 0, -(M137/('3. Cost_of_Service_Parameters'!K57*2)+MIN((M136/'3. Cost_of_Service_Parameters'!K57),(M136+M142)))) -> 0 | O143: =IF(ISERROR(-(O137/('3. Cost_of_Service_Parameters'!M57*2)+MIN((O136/'3. Cost_of_Service_Parameters'!M57),(O136+O142)))), 0, -(O137/('3. Cost_of_Service_Parameters'!M57*2)+MIN((O136/'3. Cost_of_Service_Parameters'!M57),(O136+O142)))) -> 0 | Q143: =IF(ISERROR(-(Q137/('3. Cost_of_Service_Parameters'!O57*2)+MIN((Q136/'3. Cost_of_Service_Parameters'!O57),(Q136+Q142)))), 0, -(Q137/('3. Cost_of_Service_Parameters'!O57*2)+MIN((Q136/'3. Cost_of_Service_Parameters'!O57),(Q136+Q142)))) -> 0 | S143: =IF(ISERROR(-(S137/('3. Cost_of_Service_Parameters'!Q57*2)+MIN((S136/'3. Cost_of_Service_Parameters'!Q57),(S136+S142)))), 0, -(S137/('3. Cost_of_Service_Parameters'!Q57*2)+MIN((S136/'3. Cost_of_Service_Parameters'!Q57),(S136+S142)))) -> 0 | U143: =IF(ISERROR(-(U137/('3. Cost_of_Service_Parameters'!S57*2)+MIN((U136/'3. Cost_of_Service_Parameters'!S57),(U136+U142)))), 0, -(U137/('3. Cost_of_Service_Parameters'!S57*2)+MIN((U136/'3. Cost_of_Service_Parameters'!S57),(U136+U142)))) -> 0 | W143: =IF(ISERROR(-(W137/('3. Cost_of_Service_Parameters'!U57*2)+MIN((W136/'3. Cost_of_Service_Parameters'!U57),(W136+W142)))), 0, -(W137/('3. Cost_of_Service_Parameters'!U57*2)+MIN((W136/'3. Cost_of_Service_Parameters'!U57),(W136+W142)))) -> 0
D144: Retirements/Removals (if applicable)
D145: Closing Balance | I145: =I142+I143-I144 -> 0 | K145: =K142+K143-K144 -> 0 | M145: =M142+M143-M144 -> 0 | O145: =O142+O143-O144 -> 0 | Q145: =Q142+Q143-Q144 -> 0 | S145: =S142+S143-S144 -> 0 | U145: =U142+U143-U144 -> 0 | W145: =W142+W143-W144 -> 0
C147: Net Book Value
D148: Opening Balance | I148: =I136+I142 -> 0 | K148: =I149 -> 0 | M148: =K149 -> 0 | O148: =M149 -> 0 | Q148: =O149 -> 0 | S148: =Q149 -> 0 | U148: =S149 -> 0 | W148: =U149 -> 0
D149: Closing Balance | I149: =I139+I145 -> 0 | K149: =K139+K145 -> 0 | M149: =M139+M145 -> 0 | O149: =O139+O145 -> 0 | Q149: =Q139+Q145 -> 0 | S149: =S139+S145 -> 0 | U149: =U139+U145 -> 0 | W149: =W139+W145 -> 0
D150: Incremental CAPEX | I150: =I149 -> 0 | K150: =AVERAGE(K148:K149) -> 0 | M150: =AVERAGE(M148:M149) -> 0 | O150: =AVERAGE(O148:O149) -> 0 | Q150: =AVERAGE(Q148:Q149) -> 0 | S150: =AVERAGE(S148:S149) -> 0 | U150: =AVERAGE(U148:U149) -> 0 | W150: =AVERAGE(W148:W149) -> 0
B152: Net Fixed Assets - UG Conduit
C154: Gross Book Value
D155: Opening Balance | K155: =I158 -> 0 | M155: =K158 -> 0 | O155: =M158 -> 0 | Q155: =O158 -> 0 | S155: =Q158 -> 0 | U155: =S158 -> 0 | W155: =U158 -> 0
D156: Capital Additions during year (from ICM Costs) | I156: ='2. ICM_Costs'!G196 -> 0 | K156: ='2. ICM_Costs'!I196 -> 0
D157: Retirements/Removals (if applicable)
D158: Closing Balance | I158: =I155+I156-I157 -> 0 | K158: =K155+K156-K157 -> 0 | M158: =M155+M156-M157 -> 0 | O158: =O155+O156-O157 -> 0 | Q158: =Q155+Q156-Q157 -> 0 | S158: =S155+S156-S157 -> 0 | U158: =U155+U156-U157 -> 0 | W158: =W155+W156-W157 -> 0
C160: Accumulated Depreciation
D161: Opening Balance | K161: =I164 -> 0 | M161: =K164 -> 0 | O161: =M164 -> 0 | Q161: =O164 -> 0 | S161: =Q164 -> 0 | U161: =S164 -> 0 | W161: =U164 -> 0
D162: Amortization expense during year | I162: =IF(ISERROR(-(I156/('3. Cost_of_Service_Parameters'!G59)+MIN((I155/'3. Cost_of_Service_Parameters'!G59),(I155+I161)))), 0, -(I156/('3. Cost_of_Service_Parameters'!G59)+MIN((I155/'3. Cost_of_Service_Parameters'!G59),(I155+I161)))) -> 0 | K162: =IF(ISERROR(-(K156/('3. Cost_of_Service_Parameters'!I59*2)+MIN((K155/'3. Cost_of_Service_Parameters'!I59),(K155+K161)))), 0, -(K156/('3. Cost_of_Service_Parameters'!I59*2)+MIN((K155/'3. Cost_of_Service_Parameters'!I59),(K155+K161)))) -> 0 | M162: =IF(ISERROR(-(M156/('3. Cost_of_Service_Parameters'!K59*2)+MIN((M155/'3. Cost_of_Service_Parameters'!K59),(M155+M161)))), 0, -(M156/('3. Cost_of_Service_Parameters'!K59*2)+MIN((M155/'3. Cost_of_Service_Parameters'!K59),(M155+M161)))) -> 0 | O162: =IF(ISERROR(-(O156/('3. Cost_of_Service_Parameters'!M59*2)+MIN((O155/'3. Cost_of_Service_Parameters'!M59),(O155+O161)))), 0, -(O156/('3. Cost_of_Service_Parameters'!M59*2)+MIN((O155/'3. Cost_of_Service_Parameters'!M59),(O155+O161)))) -> 0 | Q162: =IF(ISERROR(-(Q156/('3. Cost_of_Service_Parameters'!O59*2)+MIN((Q155/'3. Cost_of_Service_Parameters'!O59),(Q155+Q161)))), 0, -(Q156/('3. Cost_of_Service_Parameters'!O59*2)+MIN((Q155/'3. Cost_of_Service_Parameters'!O59),(Q155+Q161)))) -> 0 | S162: =IF(ISERROR(-(S156/('3. Cost_of_Service_Parameters'!Q59*2)+MIN((S155/'3. Cost_of_Service_Parameters'!Q59),(S155+S161)))), 0, -(S156/('3. Cost_of_Service_Parameters'!Q59*2)+MIN((S155/'3. Cost_of_Service_Parameters'!Q59),(S155+S161)))) -> 0 | U162: =IF(ISERROR(-(U156/('3. Cost_of_Service_Parameters'!S59*2)+MIN((U155/'3. Cost_of_Service_Parameters'!S59),(U155+U161)))), 0, -(U156/('3. Cost_of_Service_Parameters'!S59*2)+MIN((U155/'3. Cost_of_Service_Parameters'!S59),(U155+U161)))) -> 0 | W162: =IF(ISERROR(-(W156/('3. Cost_of_Service_Parameters'!U59*2)+MIN((W155/'3. Cost_of_Service_Parameters'!U59),(W155+W161)))), 0, -(W156/('3. Cost_of_Service_Parameters'!U59*2)+MIN((W155/'3. Cost_of_Service_Parameters'!U59),(W155+W161)))) -> 0
D163: Retirements/Removals (if applicable)
D164: Closing Balance | I164: =I161+I162-I163 -> 0 | K164: =K161+K162-K163 -> 0 | M164: =M161+M162-M163 -> 0 | O164: =O161+O162-O163 -> 0 | Q164: =Q161+Q162-Q163 -> 0 | S164: =S161+S162-S163 -> 0 | U164: =U161+U162-U163 -> 0 | W164: =W161+W162-W163 -> 0
C166: Net Book Value
D167: Opening Balance | I167: =I155+I161 -> 0 | K167: =I168 -> 0 | M167: =K168 -> 0 | O167: =M168 -> 0 | Q167: =O168 -> 0 | S167: =Q168 -> 0 | U167: =S168 -> 0 | W167: =U168 -> 0
D168: Closing Balance | I168: =I158+I164 -> 0 | K168: =K158+K164 -> 0 | M168: =M158+M164 -> 0 | O168: =O158+O164 -> 0 | Q168: =Q158+Q164 -> 0 | S168: =S158+S164 -> 0 | U168: =U158+U164 -> 0 | W168: =W158+W164 -> 0
D169: Incremental CAPEX | I169: =I168 -> 0 | K169: =AVERAGE(K167:K168) -> 0 | M169: =AVERAGE(M167:M168) -> 0 | O169: =AVERAGE(O167:O168) -> 0 | Q169: =AVERAGE(Q167:Q168) -> 0 | S169: =AVERAGE(S167:S168) -> 0 | U169: =AVERAGE(U167:U168) -> 0 | W169: =AVERAGE(W167:W168) -> 0
B171: Net Fixed Assets - UG Prim XLPE TR
C173: Gross Book Value
D174: Opening Balance | K174: =I177 -> 85237.0428 | M174: =K177 -> 85237.0428 | O174: =M177 -> 85237.0428 | Q174: =O177 -> 85237.0428 | S174: =Q177 -> 85237.0428 | U174: =S177 -> 85237.0428 | W174: =U177 -> 85237.0428
D175: Capital Additions during year (from ICM Costs) | I175: ='2. ICM_Costs'!G198 -> 85237.0428 | K175: ='2. ICM_Costs'!I198 -> 0
D176: Retirements/Removals (if applicable)
D177: Closing Balance | I177: =I174+I175-I176 -> 85237.0428 | K177: =K174+K175-K176 -> 85237.0428 | M177: =M174+M175-M176 -> 85237.0428 | O177: =O174+O175-O176 -> 85237.0428 | Q177: =Q174+Q175-Q176 -> 85237.0428 | S177: =S174+S175-S176 -> 85237.0428 | U177: =U174+U175-U176 -> 85237.0428 | W177: =W174+W175-W176 -> 85237.0428
C179: Accumulated Depreciation
D180: Opening Balance | K180: =I183 -> -2243.080074 | M180: =K183 -> -4486.160147 | O180: =M183 -> -6729.240221 | Q180: =O183 -> -8972.320295 | S180: =Q183 -> -11215.40037 | U180: =S183 -> -13458.48044 | W180: =U183 -> -15352.63695
D181: Amortization expense during year | I181: =IF(ISERROR(-(I175/('3. Cost_of_Service_Parameters'!G61)+MIN((I174/'3. Cost_of_Service_Parameters'!G61),(I174+I180)))), 0, -(I175/('3. Cost_of_Service_Parameters'!G61)+MIN((I174/'3. Cost_of_Service_Parameters'!G61),(I174+I180)))) -> -2243.080074 | K181: =IF(ISERROR(-(K175/('3. Cost_of_Service_Parameters'!I61*2)+MIN((K174/'3. Cost_of_Service_Parameters'!I61),(K174+K180)))), 0, -(K175/('3. Cost_of_Service_Parameters'!I61*2)+MIN((K174/'3. Cost_of_Service_Parameters'!I61),(K174+K180)))) -> -2243.080074 | M181: =IF(ISERROR(-(M175/('3. Cost_of_Service_Parameters'!K61*2)+MIN((M174/'3. Cost_of_Service_Parameters'!K61),(M174+M180)))), 0, -(M175/('3. Cost_of_Service_Parameters'!K61*2)+MIN((M174/'3. Cost_of_Service_Parameters'!K61),(M174+M180)))) -> -2243.080074 | O181: =IF(ISERROR(-(O175/('3. Cost_of_Service_Parameters'!M61*2)+MIN((O174/'3. Cost_of_Service_Parameters'!M61),(O174+O180)))), 0, -(O175/('3. Cost_of_Service_Parameters'!M61*2)+MIN((O174/'3. Cost_of_Service_Parameters'!M61),(O174+O180)))) -> -2243.080074 | Q181: =IF(ISERROR(-(Q175/('3. Cost_of_Service_Parameters'!O61*2)+MIN((Q174/'3. Cost_of_Service_Parameters'!O61),(Q174+Q180)))), 0, -(Q175/('3. Cost_of_Service_Parameters'!O61*2)+MIN((Q174/'3. Cost_of_Service_Parameters'!O61),(Q174+Q180)))) -> -2243.080074 | S181: =IF(ISERROR(-(S175/('3. Cost_of_Service_Parameters'!Q61*2)+MIN((S174/'3. Cost_of_Service_Parameters'!Q61),(S174+S180)))), 0, -(S175/('3. Cost_of_Service_Parameters'!Q61*2)+MIN((S174/'3. Cost_of_Service_Parameters'!Q61),(S174+S180)))) -> -2243.080074 | U181: =IF(ISERROR(-(U175/('3. Cost_of_Service_Parameters'!S61*2)+MIN((U174/'3. Cost_of_Service_Parameters'!S61),(U174+U180)))), 0, -(U175/('3. Cost_of_Service_Parameters'!S61*2)+MIN((U174/'3. Cost_of_Service_Parameters'!S61),(U174+U180)))) -> -1894.156507 | W181: =IF(ISERROR(-(W175/('3. Cost_of_Service_Parameters'!U61*2)+MIN((W174/'3. Cost_of_Service_Parameters'!U61),(W174+W180)))), 0, -(W175/('3. Cost_of_Service_Parameters'!U61*2)+MIN((W174/'3. Cost_of_Service_Parameters'!U61),(W174+W180)))) -> -1894.156507
D182: Retirements/Removals (if applicable)
D183: Closing Balance | I183: =I180+I181-I182 -> -2243.080074 | K183: =K180+K181-K182 -> -4486.160147 | M183: =M180+M181-M182 -> -6729.240221 | O183: =O180+O181-O182 -> -8972.320295 | Q183: =Q180+Q181-Q182 -> -11215.40037 | S183: =S180+S181-S182 -> -13458.48044 | U183: =U180+U181-U182 -> -15352.63695 | W183: =W180+W181-W182 -> -17246.79346
C185: Net Book Value
D186: Opening Balance | I186: =I174+I180 -> 0 | K186: =I187 -> 82993.96273 | M186: =K187 -> 80750.88265 | O186: =M187 -> 78507.80258 | Q186: =O187 -> 76264.72251 | S186: =Q187 -> 74021.64243 | U186: =S187 -> 71778.56236 | W186: =U187 -> 69884.40585
D187: Closing Balance | I187: =I177+I183 -> 82993.96273 | K187: =K177+K183 -> 80750.88265 | M187: =M177+M183 -> 78507.80258 | O187: =O177+O183 -> 76264.72251 | Q187: =Q177+Q183 -> 74021.64243 | S187: =S177+S183 -> 71778.56236 | U187: =U177+U183 -> 69884.40585 | W187: =W177+W183 -> 67990.24934
D188: Incremental CAPEX | I188: =I187 -> 82993.96273 | K188: =AVERAGE(K186:K187) -> 81872.42269 | M188: =AVERAGE(M186:M187) -> 79629.34262 | O188: =AVERAGE(O186:O187) -> 77386.26254 | Q188: =AVERAGE(Q186:Q187) -> 75143.18247 | S188: =AVERAGE(S186:S187) -> 72900.10239 | U188: =AVERAGE(U186:U187) -> 70831.4841 | W188: =AVERAGE(W186:W187) -> 68937.3276
B191: Net Fixed Assets - UG Sec - Dir Buried
C193: Gross Book Value
D194: Opening Balance | K194: =I197 -> 85237.0428 | M194: =K197 -> 85237.0428 | O194: =M197 -> 85237.0428 | Q194: =O197 -> 85237.0428 | S194: =Q197 -> 85237.0428 | U194: =S197 -> 85237.0428 | W194: =U197 -> 85237.0428
D195: Capital Additions during year (from ICM Costs) | I195: ='2. ICM_Costs'!G200 -> 85237.0428 | K195: ='2. ICM_Costs'!I226 -> 0
D196: Retirements/Removals (if applicable)
D197: Closing Balance | I197: =I194+I195-I196 -> 85237.0428 | K197: =K194+K195-K196 -> 85237.0428 | M197: =M194+M195-M196 -> 85237.0428 | O197: =O194+O195-O196 -> 85237.0428 | Q197: =Q194+Q195-Q196 -> 85237.0428 | S197: =S194+S195-S196 -> 85237.0428 | U197: =U194+U195-U196 -> 85237.0428 | W197: =W194+W195-W196 -> 85237.0428
C199: Accumulated Depreciation
D200: Opening Balance | K200: =I203 -> -2749.582026 | M200: =K203 -> -5499.164052 | O200: =M203 -> -8248.746077 | Q200: =O203 -> -10998.3281 | S200: =Q203 -> -13747.91013 | U200: =S203 -> -16497.49215 | W200: =U203 -> -19338.72691
D201: Amortization expense during year | I201: =IF(ISERROR(-(I195/('3. Cost_of_Service_Parameters'!G63)+MIN((I194/'3. Cost_of_Service_Parameters'!G63),(I194+I200)))), 0, -(I195/('3. Cost_of_Service_Parameters'!G63)+MIN((I194/'3. Cost_of_Service_Parameters'!G63),(I194+I200)))) -> -2749.582026 | K201: =IF(ISERROR(-(K195/('3. Cost_of_Service_Parameters'!I63*2)+MIN((K194/'3. Cost_of_Service_Parameters'!I63),(K194+K200)))), 0, -(K195/('3. Cost_of_Service_Parameters'!I63*2)+MIN((K194/'3. Cost_of_Service_Parameters'!I63),(K194+K200)))) -> -2749.582026 | M201: =IF(ISERROR(-(M195/('3. Cost_of_Service_Parameters'!K63*2)+MIN((M194/'3. Cost_of_Service_Parameters'!K63),(M194+M200)))), 0, -(M195/('3. Cost_of_Service_Parameters'!K63*2)+MIN((M194/'3. Cost_of_Service_Parameters'!K63),(M194+M200)))) -> -2749.582026 | O201: =IF(ISERROR(-(O195/('3. Cost_of_Service_Parameters'!M63*2)+MIN((O194/'3. Cost_of_Service_Parameters'!M63),(O194+O200)))), 0, -(O195/('3. Cost_of_Service_Parameters'!M63*2)+MIN((O194/'3. Cost_of_Service_Parameters'!M63),(O194+O200)))) -> -2749.582026 | Q201: =IF(ISERROR(-(Q195/('3. Cost_of_Service_Parameters'!O63*2)+MIN((Q194/'3. Cost_of_Service_Parameters'!O63),(Q194+Q200)))), 0, -(Q195/('3. Cost_of_Service_Parameters'!O63*2)+MIN((Q194/'3. Cost_of_Service_Parameters'!O63),(Q194+Q200)))) -> -2749.582026 | S201: =IF(ISERROR(-(S195/('3. Cost_of_Service_Parameters'!Q63*2)+MIN((S194/'3. Cost_of_Service_Parameters'!Q63),(S194+S200)))), 0, -(S195/('3. Cost_of_Service_Parameters'!Q63*2)+MIN((S194/'3. Cost_of_Service_Parameters'!Q63),(S194+S200)))) -> -2749.582026 | U201: =IF(ISERROR(-(U195/('3. Cost_of_Service_Parameters'!S63*2)+MIN((U194/'3. Cost_of_Service_Parameters'!S63),(U194+U200)))), 0, -(U195/('3. Cost_of_Service_Parameters'!S63*2)+MIN((U194/'3. Cost_of_Service_Parameters'!S63),(U194+U200)))) -> -2841.23476 | W201: =IF(ISERROR(-(W195/('3. Cost_of_Service_Parameters'!U63*2)+MIN((W194/'3. Cost_of_Service_Parameters'!U63),(W194+W200)))), 0, -(W195/('3. Cost_of_Service_Parameters'!U63*2)+MIN((W194/'3. Cost_of_Service_Parameters'!U63),(W194+W200)))) -> -2841.23476
D202: Retirements/Removals (if applicable)
D203: Closing Balance | I203: =I200+I201-I202 -> -2749.582026 | K203: =K200+K201-K202 -> -5499.164052 | M203: =M200+M201-M202 -> -8248.746077 | O203: =O200+O201-O202 -> -10998.3281 | Q203: =Q200+Q201-Q202 -> -13747.91013 | S203: =S200+S201-S202 -> -16497.49215 | U203: =U200+U201-U202 -> -19338.72691 | W203: =W200+W201-W202 -> -22179.96167
C205: Net Book Value
D206: Opening Balance | I206: =I194+I200 -> 0 | K206: =I207 -> 82487.46077 | M206: =K207 -> 79737.87875 | O206: =M207 -> 76988.29672 | Q206: =O207 -> 74238.7147 | S206: =Q207 -> 71489.13267 | U206: =S207 -> 68739.55065 | W206: =U207 -> 65898.31589
D207: Closing Balance | I207: =I197+I203 -> 82487.46077 | K207: =K197+K203 -> 79737.87875 | M207: =M197+M203 -> 76988.29672 | O207: =O197+O203 -> 74238.7147 | Q207: =Q197+Q203 -> 71489.13267 | S207: =S197+S203 -> 68739.55065 | U207: =U197+U203 -> 65898.31589 | W207: =W197+W203 -> 63057.08113
D208: Incremental CAPEX | I208: =I207 -> 82487.46077 | K208: =AVERAGE(K206:K207) -> 81112.66976 | M208: =AVERAGE(M206:M207) -> 78363.08774 | O208: =AVERAGE(O206:O207) -> 75613.50571 | Q208: =AVERAGE(Q206:Q207) -> 72863.92368 | S208: =AVERAGE(S206:S207) -> 70114.34166 | U208: =AVERAGE(U206:U207) -> 67318.93327 | W208: =AVERAGE(W206:W207) -> 64477.69851
B211: Net Fixed Assets - UG Sec In Duct/Svs
C213: Gross Book Value
D214: Opening Balance | K214: =I217 -> 0 | M214: =K217 -> 0 | O214: =M217 -> 0 | Q214: =O217 -> 0 | S214: =Q217 -> 0 | U214: =S217 -> 0 | W214: =U217 -> 0
D215: Capital Additions during year (from ICM Costs) | I215: ='2. ICM_Costs'!G202 -> 0 | K215: ='2. ICM_Costs'!I246 -> 0
D216: Retirements/Removals (if applicable)
D217: Closing Balance | I217: =I214+I215-I216 -> 0 | K217: =K214+K215-K216 -> 0 | M217: =M214+M215-M216 -> 0 | O217: =O214+O215-O216 -> 0 | Q217: =Q214+Q215-Q216 -> 0 | S217: =S214+S215-S216 -> 0 | U217: =U214+U215-U216 -> 0 | W217: =W214+W215-W216 -> 0
C219: Accumulated Depreciation
D220: Opening Balance | K220: =I223 -> 0 | M220: =K223 -> 0 | O220: =M223 -> 0 | Q220: =O223 -> 0 | S220: =Q223 -> 0 | U220: =S223 -> 0 | W220: =U223 -> 0
D221: Amortization expense during year | I221: =IF(ISERROR(-(I215/('3. Cost_of_Service_Parameters'!G65)+MIN((I214/'3. Cost_of_Service_Parameters'!G65),(I214+I220)))), 0, -(I215/('3. Cost_of_Service_Parameters'!G65)+MIN((I214/'3. Cost_of_Service_Parameters'!G65),(I214+I220)))) -> 0 | K221: =IF(ISERROR(-(K215/('3. Cost_of_Service_Parameters'!I65*2)+MIN((K214/'3. Cost_of_Service_Parameters'!I65),(K214+K220)))), 0, -(K215/('3. Cost_of_Service_Parameters'!I65*2)+MIN((K214/'3. Cost_of_Service_Parameters'!I65),(K214+K220)))) -> 0 | M221: =IF(ISERROR(-(M215/('3. Cost_of_Service_Parameters'!K65*2)+MIN((M214/'3. Cost_of_Service_Parameters'!K65),(M214+M220)))), 0, -(M215/('3. Cost_of_Service_Parameters'!K65*2)+MIN((M214/'3. Cost_of_Service_Parameters'!K65),(M214+M220)))) -> 0 | O221: =IF(ISERROR(-(O215/('3. Cost_of_Service_Parameters'!M65*2)+MIN((O214/'3. Cost_of_Service_Parameters'!M65),(O214+O220)))), 0, -(O215/('3. Cost_of_Service_Parameters'!M65*2)+MIN((O214/'3. Cost_of_Service_Parameters'!M65),(O214+O220)))) -> 0 | Q221: =IF(ISERROR(-(Q215/('3. Cost_of_Service_Parameters'!O65*2)+MIN((Q214/'3. Cost_of_Service_Parameters'!O65),(Q214+Q220)))), 0, -(Q215/('3. Cost_of_Service_Parameters'!O65*2)+MIN((Q214/'3. Cost_of_Service_Parameters'!O65),(Q214+Q220)))) -> 0 | S221: =IF(ISERROR(-(S215/('3. Cost_of_Service_Parameters'!Q65*2)+MIN((S214/'3. Cost_of_Service_Parameters'!Q65),(S214+S220)))), 0, -(S215/('3. Cost_of_Service_Parameters'!Q65*2)+MIN((S214/'3. Cost_of_Service_Parameters'!Q65),(S214+S220)))) -> 0 | U221: =IF(ISERROR(-(U215/('3. Cost_of_Service_Parameters'!S65*2)+MIN((U214/'3. Cost_of_Service_Parameters'!S65),(U214+U220)))), 0, -(U215/('3. Cost_of_Service_Parameters'!S65*2)+MIN((U214/'3. Cost_of_Service_Parameters'!S65),(U214+U220)))) -> 0 | W221: =IF(ISERROR(-(W215/('3. Cost_of_Service_Parameters'!U65*2)+MIN((W214/'3. Cost_of_Service_Parameters'!U65),(W214+W220)))), 0, -(W215/('3. Cost_of_Service_Parameters'!U65*2)+MIN((W214/'3. Cost_of_Service_Parameters'!U65),(W214+W220)))) -> 0
D222: Retirements/Removals (if applicable)
D223: Closing Balance | I223: =I220+I221-I222 -> 0 | K223: =K220+K221-K222 -> 0 | M223: =M220+M221-M222 -> 0 | O223: =O220+O221-O222 -> 0 | Q223: =Q220+Q221-Q222 -> 0 | S223: =S220+S221-S222 -> 0 | U223: =U220+U221-U222 -> 0 | W223: =W220+W221-W222 -> 0
C225: Net Book Value
D226: Opening Balance | I226: =I214+I220 -> 0 | K226: =I227 -> 0 | M226: =K227 -> 0 | O226: =M227 -> 0 | Q226: =O227 -> 0 | S226: =Q227 -> 0 | U226: =S227 -> 0 | W226: =U227 -> 0
D227: Closing Balance | I227: =I217+I223 -> 0 | K227: =K217+K223 -> 0 | M227: =M217+M223 -> 0 | O227: =O217+O223 -> 0 | Q227: =Q217+Q223 -> 0 | S227: =S217+S223 -> 0 | U227: =U217+U223 -> 0 | W227: =W217+W223 -> 0
D228: Incremental CAPEX | I228: =I227 -> 0 | K228: =AVERAGE(K226:K227) -> 0 | M228: =AVERAGE(M226:M227) -> 0 | O228: =AVERAGE(O226:O227) -> 0 | Q228: =AVERAGE(Q226:Q227) -> 0 | S228: =AVERAGE(S226:S227) -> 0 | U228: =AVERAGE(U226:U227) -> 0 | W228: =AVERAGE(W226:W227) -> 0
B231: Net Fixed Assets - Air Insulated Switchgear
C233: Gross Book Value
D234: Opening Balance | K234: =I237 -> 0 | M234: =K237 -> 0 | O234: =M237 -> 0 | Q234: =O237 -> 0 | S234: =Q237 -> 0 | U234: =S237 -> 0 | W234: =U237 -> 0
D235: Capital Additions during year (from ICM Costs) | I235: ='2. ICM_Costs'!G204 -> 0 | K235: ='2. ICM_Costs'!I266 -> 0
D236: Retirements/Removals (if applicable)
D237: Closing Balance | I237: =I234+I235-I236 -> 0 | K237: =K234+K235-K236 -> 0 | M237: =M234+M235-M236 -> 0 | O237: =O234+O235-O236 -> 0 | Q237: =Q234+Q235-Q236 -> 0 | S237: =S234+S235-S236 -> 0 | U237: =U234+U235-U236 -> 0 | W237: =W234+W235-W236 -> 0
C239: Accumulated Depreciation
D240: Opening Balance | K240: =I243 -> 0 | M240: =K243 -> 0 | O240: =M243 -> 0 | Q240: =O243 -> 0 | S240: =Q243 -> 0 | U240: =S243 -> 0 | W240: =U243 -> 0
D241: Amortization expense during year | I241: =IF(ISERROR(-(I235/('3. Cost_of_Service_Parameters'!G67)+MIN((I234/'3. Cost_of_Service_Parameters'!G67),(I234+I240)))), 0, -(I235/('3. Cost_of_Service_Parameters'!G67)+MIN((I234/'3. Cost_of_Service_Parameters'!G67),(I234+I240)))) -> 0 | K241: =IF(ISERROR(-(K235/('3. Cost_of_Service_Parameters'!I67*2)+MIN((K234/'3. Cost_of_Service_Parameters'!I67),(K234+K240)))), 0, -(K235/('3. Cost_of_Service_Parameters'!I67*2)+MIN((K234/'3. Cost_of_Service_Parameters'!I67),(K234+K240)))) -> 0 | M241: =IF(ISERROR(-(M235/('3. Cost_of_Service_Parameters'!K67*2)+MIN((M234/'3. Cost_of_Service_Parameters'!K67),(M234+M240)))), 0, -(M235/('3. Cost_of_Service_Parameters'!K67*2)+MIN((M234/'3. Cost_of_Service_Parameters'!K67),(M234+M240)))) -> 0 | O241: =IF(ISERROR(-(O235/('3. Cost_of_Service_Parameters'!M67*2)+MIN((O234/'3. Cost_of_Service_Parameters'!M67),(O234+O240)))), 0, -(O235/('3. Cost_of_Service_Parameters'!M67*2)+MIN((O234/'3. Cost_of_Service_Parameters'!M67),(O234+O240)))) -> 0 | Q241: =IF(ISERROR(-(Q235/('3. Cost_of_Service_Parameters'!O67*2)+MIN((Q234/'3. Cost_of_Service_Parameters'!O67),(Q234+Q240)))), 0, -(Q235/('3. Cost_of_Service_Parameters'!O67*2)+MIN((Q234/'3. Cost_of_Service_Parameters'!O67),(Q234+Q240)))) -> 0 | S241: =IF(ISERROR(-(S235/('3. Cost_of_Service_Parameters'!Q67*2)+MIN((S234/'3. Cost_of_Service_Parameters'!Q67),(S234+S240)))), 0, -(S235/('3. Cost_of_Service_Parameters'!Q67*2)+MIN((S234/'3. Cost_of_Service_Parameters'!Q67),(S234+S240)))) -> 0 | U241: =IF(ISERROR(-(U235/('3. Cost_of_Service_Parameters'!S67*2)+MIN((U234/'3. Cost_of_Service_Parameters'!S67),(U234+U240)))), 0, -(U235/('3. Cost_of_Service_Parameters'!S67*2)+MIN((U234/'3. Cost_of_Service_Parameters'!S67),(U234+U240)))) -> 0 | W241: =IF(ISERROR(-(W235/('3. Cost_of_Service_Parameters'!U67*2)+MIN((W234/'3. Cost_of_Service_Parameters'!U67),(W234+W240)))), 0, -(W235/('3. Cost_of_Service_Parameters'!U67*2)+MIN((W234/'3. Cost_of_Service_Parameters'!U67),(W234+W240)))) -> 0
D242: Retirements/Removals (if applicable)
D243: Closing Balance | I243: =I240+I241-I242 -> 0 | K243: =K240+K241-K242 -> 0 | M243: =M240+M241-M242 -> 0 | O243: =O240+O241-O242 -> 0 | Q243: =Q240+Q241-Q242 -> 0 | S243: =S240+S241-S242 -> 0 | U243: =U240+U241-U242 -> 0 | W243: =W240+W241-W242 -> 0
C245: Net Book Value
D246: Opening Balance | I246: =I234+I240 -> 0 | K246: =I247 -> 0 | M246: =K247 -> 0 | O246: =M247 -> 0 | Q246: =O247 -> 0 | S246: =Q247 -> 0 | U246: =S247 -> 0 | W246: =U247 -> 0
D247: Closing Balance | I247: =I237+I243 -> 0 | K247: =K237+K243 -> 0 | M247: =M237+M243 -> 0 | O247: =O237+O243 -> 0 | Q247: =Q237+Q243 -> 0 | S247: =S237+S243 -> 0 | U247: =U237+U243 -> 0 | W247: =W237+W243 -> 0
D248: Incremental CAPEX | I248: =I247 -> 0 | K248: =AVERAGE(K246:K247) -> 0 | M248: =AVERAGE(M246:M247) -> 0 | O248: =AVERAGE(O246:O247) -> 0 | Q248: =AVERAGE(Q246:Q247) -> 0 | S248: =AVERAGE(S246:S247) -> 0 | U248: =AVERAGE(U246:U247) -> 0 | W248: =AVERAGE(W246:W247) -> 0
B251: Net Fixed Assets - Solid Dielectric Switchgear
C253: Gross Book Value
D254: Opening Balance | K254: =I257 -> 0 | M254: =K257 -> 0 | O254: =M257 -> 0 | Q254: =O257 -> 0 | S254: =Q257 -> 0 | U254: =S257 -> 0 | W254: =U257 -> 0
D255: Capital Additions during year (from ICM Costs) | I255: ='2. ICM_Costs'!G206 -> 0 | K255: ='2. ICM_Costs'!I286 -> 0
D256: Retirements/Removals (if applicable)
D257: Closing Balance | I257: =I254+I255-I256 -> 0 | K257: =K254+K255-K256 -> 0 | M257: =M254+M255-M256 -> 0 | O257: =O254+O255-O256 -> 0 | Q257: =Q254+Q255-Q256 -> 0 | S257: =S254+S255-S256 -> 0 | U257: =U254+U255-U256 -> 0 | W257: =W254+W255-W256 -> 0
C259: Accumulated Depreciation
D260: Opening Balance | K260: =I263 -> 0 | M260: =K263 -> 0 | O260: =M263 -> 0 | Q260: =O263 -> 0 | S260: =Q263 -> 0 | U260: =S263 -> 0 | W260: =U263 -> 0
D261: Amortization expense during year | I261: =IF(ISERROR(-(I255/('3. Cost_of_Service_Parameters'!G69)+MIN((I254/'3. Cost_of_Service_Parameters'!G69),(I254+I260)))), 0, -(I255/('3. Cost_of_Service_Parameters'!G69)+MIN((I254/'3. Cost_of_Service_Parameters'!G69),(I254+I260)))) -> 0 | K261: =IF(ISERROR(-(K255/('3. Cost_of_Service_Parameters'!I69*2)+MIN((K254/'3. Cost_of_Service_Parameters'!I69),(K254+K260)))), 0, -(K255/('3. Cost_of_Service_Parameters'!I69*2)+MIN((K254/'3. Cost_of_Service_Parameters'!I69),(K254+K260)))) -> 0 | M261: =IF(ISERROR(-(M255/('3. Cost_of_Service_Parameters'!K69*2)+MIN((M254/'3. Cost_of_Service_Parameters'!K69),(M254+M260)))), 0, -(M255/('3. Cost_of_Service_Parameters'!K69*2)+MIN((M254/'3. Cost_of_Service_Parameters'!K69),(M254+M260)))) -> 0 | O261: =IF(ISERROR(-(O255/('3. Cost_of_Service_Parameters'!M69*2)+MIN((O254/'3. Cost_of_Service_Parameters'!M69),(O254+O260)))), 0, -(O255/('3. Cost_of_Service_Parameters'!M69*2)+MIN((O254/'3. Cost_of_Service_Parameters'!M69),(O254+O260)))) -> 0 | Q261: =IF(ISERROR(-(Q255/('3. Cost_of_Service_Parameters'!O69*2)+MIN((Q254/'3. Cost_of_Service_Parameters'!O69),(Q254+Q260)))), 0, -(Q255/('3. Cost_of_Service_Parameters'!O69*2)+MIN((Q254/'3. Cost_of_Service_Parameters'!O69),(Q254+Q260)))) -> 0 | S261: =IF(ISERROR(-(S255/('3. Cost_of_Service_Parameters'!Q69*2)+MIN((S254/'3. Cost_of_Service_Parameters'!Q69),(S254+S260)))), 0, -(S255/('3. Cost_of_Service_Parameters'!Q69*2)+MIN((S254/'3. Cost_of_Service_Parameters'!Q69),(S254+S260)))) -> 0 | U261: =IF(ISERROR(-(U255/('3. Cost_of_Service_Parameters'!S69*2)+MIN((U254/'3. Cost_of_Service_Parameters'!S69),(U254+U260)))), 0, -(U255/('3. Cost_of_Service_Parameters'!S69*2)+MIN((U254/'3. Cost_of_Service_Parameters'!S69),(U254+U260)))) -> 0 | W261: =IF(ISERROR(-(W255/('3. Cost_of_Service_Parameters'!U69*2)+MIN((W254/'3. Cost_of_Service_Parameters'!U69),(W254+W260)))), 0, -(W255/('3. Cost_of_Service_Parameters'!U69*2)+MIN((W254/'3. Cost_of_Service_Parameters'!U69),(W254+W260)))) -> 0
D262: Retirements/Removals (if applicable)
D263: Closing Balance | I263: =I260+I261-I262 -> 0 | K263: =K260+K261-K262 -> 0 | M263: =M260+M261-M262 -> 0 | O263: =O260+O261-O262 -> 0 | Q263: =Q260+Q261-Q262 -> 0 | S263: =S260+S261-S262 -> 0 | U263: =U260+U261-U262 -> 0 | W263: =W260+W261-W262 -> 0
C265: Net Book Value
D266: Opening Balance | I266: =I254+I260 -> 0 | K266: =I267 -> 0 | M266: =K267 -> 0 | O266: =M267 -> 0 | Q266: =O267 -> 0 | S266: =Q267 -> 0 | U266: =S267 -> 0 | W266: =U267 -> 0
D267: Closing Balance | I267: =I257+I263 -> 0 | K267: =K257+K263 -> 0 | M267: =M257+M263 -> 0 | O267: =O257+O263 -> 0 | Q267: =Q257+Q263 -> 0 | S267: =S257+S263 -> 0 | U267: =U257+U263 -> 0 | W267: =W257+W263 -> 0
D268: Incremental CAPEX | I268: =I267 -> 0 | K268: =AVERAGE(K266:K267) -> 0 | M268: =AVERAGE(M266:M267) -> 0 | O268: =AVERAGE(O266:O267) -> 0 | Q268: =AVERAGE(Q266:Q267) -> 0 | S268: =AVERAGE(S266:S267) -> 0 | U268: =AVERAGE(U266:U267) -> 0 | W268: =AVERAGE(W266:W267) -> 0
B271: Net Fixed Assets - UG Cable Injection
C273: Gross Book Value
D274: Opening Balance | K274: =I277 -> 0 | M274: =K277 -> 0 | O274: =M277 -> 0 | Q274: =O277 -> 0 | S274: =Q277 -> 0 | U274: =S277 -> 0 | W274: =U277 -> 0
... 60 more rows

Sheet 5. UCC_Calculation
A18: Sheet 6: CCA For PILs Calculation
A20: UCC/Class 47 | D20: ='3. Cost_of_Service_Parameters'!G19 -> 2019
D21: ='2. ICM_Costs'!G19 -> Audited Actual
A23: Opening UCC | D23: 0
A24: Capital Additions | D24: =+'6. ICMIRR_2019'!F27 -> 2841234.76
A25: Retirements/Removals (if applicable)
A26: UCC Full Year | D26: =SUM(D23:D24)-D25 -> 2841234.76
A29: CCA Rate Class | D29: ='3. Cost_of_Service_Parameters'!G83 -> 47
A30: CCA Rate | D30: ='3. Cost_of_Service_Parameters'!G84 -> 0.08
A31: CCA | D31: =D26*D30 -> 227298.7808
A32: Closing UCC | D32: =IF((D26-D31)<0, 0, D26-D31) -> 2613935.979
A34: UCC/Class 8 | D34: =D20 -> 2019
D35: Audited Actual
A37: Opening UCC | D37: 0
A38: Capital Additions RTU's | D38: 0
A39: Retirements/Removals (if applicable)
A40: UCC Full Year | D40: =SUM(D37:D38)-D39 -> 0
A43: CCA Rate Class | D43: ='3. Cost_of_Service_Parameters'!G107 -> 47
A44: CCA Rate | D44: ='3. Cost_of_Service_Parameters'!G108 -> 0.08
A45: CCA | D45: =D40*D44 -> 0
A46: Closing UCC | D46: =IF((D40-D45)<0, 0, D40-D45) -> 0

Sheet 6. ICMIRR_2019
A11: Sheet 6: | C11: Incremental Capital Adjustment
I24: 2019 OEB Approved
C26: Return on Rate Base
C27: Incremental Capital CAPEX | F27: 2841234.76 | G27: B | K27: 5500000
C28: Depreciation Expense | F28: =-'4. ICM_Assets_and_Rate_Base'!I357 -> 64780.15557 | G28: C | K28: 127947
C29: Incremental Capital CAPEX to be included in Rate Base | F29: =(F27+(F27-F28))/2 -> 2808844.682 | G29: D = B - C | K29: =(K27+(K27-K28))/2 -> 5436026.5
C31: Deemed ShortTerm Debt % | D31: ='3. Cost_of_Service_Parameters'!G22 -> 0.04 | E31: E | F31: =F29*D31 -> 112353.7873 | G31: G = D * E | I31: =D31 -> 0.04 | K31: =K29*I31 -> 217441.06
C32: Deemed Long Term Debt % | D32: ='3. Cost_of_Service_Parameters'!G23 -> 0.56 | E32: F | F32: =F29*D32 -> 1572953.022 | G32: H = D * F | I32: =D32 -> 0.56 | K32: =K29*I32 -> 3044174.84
C34: Short Term Interest | D34: ='3. Cost_of_Service_Parameters'!G29 -> 0.0176 | E34: I | F34: =F31*D34 -> 1977.426656 | G34: K = G * I | I34: =D34 -> 0.0176 | K34: =K31*I34 -> 3826.962656
C35: Long Term Interest | D35: ='3. Cost_of_Service_Parameters'!G30 -> 0.03882504 | E35: J | F35: =F32*D35 -> 61069.964 | G35: L = H * J | I35: =D35 -> 0.03882504 | K35: =K32*I35 -> 118190.2099
C37: Return on Rate Base - Interest | F37: =SUM(F34:F35) -> 63047.39066 | G37: M = K + L | K37: =SUM(K34:K35) -> 122017.1726
C40: Deemed Equity % | D40: ='3. Cost_of_Service_Parameters'!G24 -> 0.4 | E40: N | F40: =F29*D40 -> 1123537.873 | G40: P = D * N | I40: 0.4 | K40: =K29*I40 -> 2174410.6
C42: Return on Rate Base -Equity | D42: ='3. Cost_of_Service_Parameters'!G31 -> 0.0878 | E42: O | F42: =F40*D42 -> 98646.62524 | G42: Q = P * O | I42: =D42 -> 0.0878 | K42: =K40*I42 -> 190913.2507
C44: Return on Rate Base - Total | F44: =F37+F42 -> 161694.0159 | G44: R = M + Q | K44: =K37+K42 -> 312930.4233
C48: Amortization Expense
C50: Amortization Expense - Incremental | E50: C | F50: =F28 -> 64780.15557 | G50: S | K50: =K28 -> 127947
C53: Grossed up PIL's
C55: Regulatory Taxable Income | E55: O | F55: =F42 -> 98646.62524 | G55: T | K55: =K42 -> 190913.2507
C57: Add Back Amortization Expense | E57: S | F57: =F50 -> 64780.15557 | G57: U | K57: =K50 -> 127947
C59: Deduct CCA | F59: ='5. UCC_Calculation'!D31+'5. UCC_Calculation'!D45 -> 227298.7808 | G59: V | K59: 440000
C61: Incremental Taxable Income | F61: =F55+F57-F59 -> -63871.99999 | G61: W = T + U - V | K61: =K55+K57-K59 -> -121139.7493
C63: Current Tax Rate (F1.1 Z-Factor Tax Changes) | D63: ='3. Cost_of_Service_Parameters'!G40 -> 0.265 | E63: X | I63: =D63 -> 0.265
C65: PIL's Before Gross Up | F65: =F61*D63 -> -16926.08 | G65: Y = W * X | K65: =K61*I63 -> -32102.03357
C67: Incremental Grossed Up PIL's | F67: =F65/(1-D63) -> -23028.68027 | G67: Z = Y / ( 1 - X ) | K67: =K65/(1-I63) -> -43676.23615
C70: Ontario Capital Tax
C71: Incremental Capital CAPEX | F71: =F27 -> 2841234.76 | G71: AA | K71: =K27 -> 5500000
C73: Less : Available Capital Exemption (if any) | F73: 0 | G73: AB | K73: 0
C75: Incremental Capital CAPEX subject to OCT | F75: =F71-F73 -> 2841234.76 | G75: AC = AA - AB | K75: =K71-K73 -> 5500000
C77: Ontario Capital Tax Rate (F1.1 Z-Factor Tax Changes) | D77: 0 | E77: AD
C79: Incremental Ontario Capital Tax | F79: =F75*D77 -> 0 | G79: AE = AC * AD | K79: =K75*I77 -> 0
C82: Incremental Revenue Requirement
C83: Return on Rate Base - Total | E83: Q | F83: =F44 -> 161694.0159 | G83: AF | K83: =K44 -> 312930.4233
C84: Amortization Expense - Total | E84: S | F84: =F50 -> 64780.15557 | G84: AG | K84: =K50 -> 127947
C85: Incremental Grossed Up PIL's | E85: Z | F85: =F67 -> -23028.68027 | G85: AH | K85: =K67 -> -43676.23615
C86: Incremental Ontario Capital Tax | E86: AE | F86: =F79 -> 0 | G86: AI | K86: =K79 -> 0
C88: Incremental Revenue Requirement | F88: =SUM(F83:F86) -> 203445.4912 | G88: AJ = AF + AG + AH + AI | K88: =SUM(K83:K86) -> 397201.1871

Sheet 7. Funding Adder Revs
B13: This worksheet calculates the funding adder revenues.
B17: Sheet 7: ICM Funding Adder Revenues
J20: Account 1511 - Sub-account ICM Funding Adder Revenues
K21: Rate Rider Collected
B22: Prescribed Interest Rates | C22: Approved Deferral and Variance Accounts | D22: CWIP | F22: Date | G22: Year | H22: Quarter | J22: Opening Balance (Principal) | K22: Funding Adder Revenues | L22: Interest Rate | M22: Interest | N22: Principal & Interest (Cumm.) | P22: Board Approved ICM Funding Adder | Q22: Board Approved ICM Funding Adder (Cumm.)
B24: 2018 Q1 | C24: 0.015 | D24: 0.0299 | F24: 2018-01-01 | G24: =YEAR(F24) -> 2018 | H24: =IF(MONTH(F24)=0,"",IF(MONTH(F24)<4,"Q1",IF(MONTH(F24)<7,"Q2",IF(MONTH(F24)<10,"Q3","Q4")))) -> Q1 | I24: =CONCATENATE(G24," ",H24) -> 2018 Q1 | J24: 0 | L24: 0.015 | M24: =ROUND(J24*L24/12,2) -> 0 | N24: =K24+M24 -> 0 | Q24: =P24 -> 0
B25: 2018 Q2 | C25: 0.0189 | D25: 0.0335 | F25: 2018-02-01 | G25: =YEAR(F25) -> 2018 | H25: =IF(MONTH(F25)=0,"",IF(MONTH(F25)<4,"Q1",IF(MONTH(F25)<7,"Q2",IF(MONTH(F25)<10,"Q3","Q4")))) -> Q1 | I25: =CONCATENATE(G25," ",H25) -> 2018 Q1 | J25: =J24+K24 -> 0 | L25: 0.015 | M25: =ROUND(J25*L25/12,2) -> 0 | N25: =N24+K25+M25 -> 0 | Q25: =Q24+P25 -> 0
B26: 2018 Q3 | C26: 0.0189 | D26: 0.0335 | F26: 2018-03-01 | G26: 2018 | H26: Q1 | I26: 2018 Q1 | J26: =J25+K25 -> 0 | L26: 0.015 | M26: 0 | N26: =N25+K26+M26 -> 0 | Q26: =Q25+P26 -> 0
B27: 2018 Q4 | C27: 0.0217 | D27: 0.0335 | F27: 2018-04-01 | G27: 2018 | H27: Q2 | I27: 2018 Q2 | J27: 0 | L27: 0.0189 | M27: 0 | N27: 0 | Q27: 0
B28: 2019 Q1 | C28: 0.0245 | D28: 0.0382 | F28: 2018-05-01 | G28: 2018 | H28: Q2 | I28: 2018 Q2 | J28: 0 | L28: 0.0189 | M28: 0 | N28: 0 | Q28: 0
B29: 2019 Q2 | C29: 0.0218 | D29: 0.0339 | F29: 2018-06-01 | G29: 2018 | H29: Q2 | I29: 2018 Q2 | J29: 0 | L29: 0.0189 | M29: 0 | N29: 0 | Q29: 0
B30: 2019 Q3 | C30: 0.0218 | D30: 0.0288 | F30: 2018-07-01 | G30: 2018 | H30: Q3 | I30: 2018 Q3 | J30: 0 | L30: 0.0189 | M30: 0 | N30: 0 | Q30: 0
B31: 2019 Q4 | C31: 0.0218 | D31: 0.0288 | F31: 2018-08-01 | G31: 2018 | H31: Q3 | I31: 2018 Q3 | J31: 0 | L31: 0.0189 | M31: 0 | N31: 0 | Q31: 0
B32: 2020 Q1 | C32: 0.0218 | D32: 0.0288 | F32: 2018-09-01 | G32: 2018 | H32: Q3 | I32: 2018 Q3 | J32: 0 | L32: 0.0189 | M32: 0 | N32: 0 | Q32: 0
B33: 2020 Q2 | C33: 0.0218 | D33: 0.0248 | F33: 2018-10-01 | G33: 2018 | H33: Q4 | I33: 2018 Q4 | J33: 0 | L33: 0.0217 | M33: 0 | N33: 0 | Q33: 0
B34: 2020 Q3 | C34: 0.0057 | D34: 0.0248 | F34: 2018-11-01 | G34: 2018 | H34: Q4 | I34: 2018 Q4 | J34: 0 | L34: 0.0217 | M34: 0 | N34: 0 | Q34: 0
B35: 2020 Q4 | C35: 0.0057 | D35: 0.0203 | F35: 2018-12-01 | G35: 2018 | H35: Q4 | I35: 2018 Q4 | J35: 0 | L35: 0.0217 | M35: 0 | N35: 0 | Q35: 0
B36: 2021 Q1 | C36: 0.0057 | D36: 0.0203 | F36: 2019-01-01 | G36: 2019 | H36: Q1 | I36: 2019 Q1 | J36: 0 | L36: 0.0245 | M36: 0 | N36: 0 | Q36: 0
B37: 2021 Q2 | C37: 0.0057 | D37: 0.0229 | F37: 2019-02-01 | G37: 2019 | H37: Q1 | I37: 2019 Q1 | J37: 0 | L37: 0.0245 | M37: 0 | N37: 0 | Q37: 0
B38: 2021 Q3 | C38: 0.0057 | D38: 0.0229 | F38: 2019-03-01 | G38: 2019 | H38: Q1 | I38: 2019 Q1 | J38: 0 | K38: 6314.309991 | L38: 0.0245 | M38: 0 | N38: =N37+K38+M38 -> 6314.309991 | P38: 33100.09893 | Q38: 33100.09893
B39: 2021 Q4 | C39: 0.0057 | D39: 0.0229 | F39: 2019-04-01 | G39: 2019 | H39: Q2 | I39: 2019 Q2 | J39: =J38+K38 -> 6314.309991 | K39: 22054.8187 | L39: 0.0218 | M39: =ROUND(J39*L39/12,2) -> 11.47 | N39: =N38+K39+M39 -> 28380.59869 | P39: 33100.09893 | Q39: 66200.19785
B40: 2022 Q1 | C40: 0.0057 | D40: 0.0272 | F40: 2019-05-01 | G40: 2019 | H40: Q2 | I40: 2019 Q2 | J40: =J39+K39 -> 28369.12869 | K40: 14355.02236 | L40: 0.0218 | M40: 51.54 | N40: 42787.16105 | P40: 33100.09893 | Q40: 99300.29678
B41: 2022 Q2 | C41: 0.0102 | D41: 0.0331 | F41: 2019-06-01 | G41: 2019 | H41: Q2 | I41: 2019 Q2 | J41: 42724.15105 | K41: 14330.25862 | L41: 0.0218 | M41: 77.62 | N41: 57195.03967 | P41: 33100.09893 | Q41: 132400.3957
B42: 2022 Q3 | C42: 0.022 | D42: 0.0466 | F42: 2019-07-01 | G42: 2019 | H42: Q3 | I42: 2019 Q3 | J42: 57054.40967 | K42: 15231.63199 | L42: 0.0218 | M42: 103.65 | N42: 72530.32167 | P42: 33100.09893 | Q42: 165500.4946
B43: 2022 Q4 | C43: 0.0387 | D43: 0.0501 | F43: 2019-08-01 | G43: 2019 | H43: Q3 | I43: 2019 Q3 | J43: 72286.04167 | K43: 14151.0307 | L43: 0.0218 | M43: 131.32 | N43: 86812.67237 | P43: 33100.09893 | Q43: 198600.5936
B44: 2023 Q1 | C44: 0.0473 | D44: 0.0501 | F44: 2019-09-01 | G44: 2019 | H44: Q3 | I44: 2019 Q3 | J44: 86437.07237 | K44: 13304.13576 | L44: 0.0218 | M44: 157.03 | N44: 100273.8381 | P44: 33100.09893 | Q44: 231700.6925
B45: 2023 Q2 | C45: 0.0498 | D45: 0.0501 | F45: 2019-10-01 | G45: 2019 | H45: Q4 | I45: 2019 Q4 | J45: 99741.20813 | K45: 14617.03177 | L45: 0.0218 | M45: 181.2 | N45: 115072.0699 | P45: 33100.09893 | Q45: 264800.7914
B46: 2023 Q3 | C46: 0.0498 | D46: 0.0501 | F46: 2019-11-01 | G46: 2019 | H46: Q4 | I46: 2019 Q4 | J46: 114358.2399 | K46: 13907.21676 | L46: 0.0218 | M46: 207.75 | N46: 129187.0367 | P46: 33100.09893 | Q46: 297900.8903
B47: 2023 Q4 | C47: 0.0549 | D47: 0.0548 | F47: 2019-12-01 | G47: 2019 | H47: Q4 | I47: 2019 Q4 | J47: 128265.4567 | K47: 14497.84776 | L47: 0.0218 | M47: 233.02 | N47: 143917.9044 | P47: 33100.09893 | Q47: 331000.9893
B48: 2024 Q1 | C48: 0.0549 | D48: 0.0548 | F48: 2020-01-01 | G48: 2020 | H48: Q1 | I48: 2020 Q1 | J48: 142763.3044 | K48: 13960.16401 | L48: 0.0218 | M48: =ROUND(J48*L48/12,2) -> 259.35 | N48: =N47+K48+M48 -> 158137.4184 | P48: 33100.09893 | Q48: =Q47+P48 -> 364101.0882
B49: 2024 Q2 | C49: 0.0549 | D49: 0.0598 | F49: 2020-02-01 | G49: 2020 | H49: Q1 | I49: 2020 Q1 | J49: 156723.4684 | K49: 13338.60469 | L49: 0.0218 | M49: 284.71 | N49: 171760.7331 | P49: 33100.09893 | Q49: 397201.1871
B50: 2024 Q3 | C50: 0.052 | D50: 0.0598 | F50: 2020-03-01 | G50: 2020 | H50: Q1 | I50: 2020 Q1 | J50: 170062.0731 | K50: 14984.80197 | L50: 0.0218 | M50: 308.95 | N50: 187054.4851 | P50: 33100.09893 | Q50: 430301.286
B51: 2024 Q4 | C51: 0.044 | D51: 0.0455 | F51: 2020-04-01 | G51: 2020 | H51: Q2 | I51: 2020 Q2 | J51: 185046.8751 | K51: 12910.21335 | L51: 0.0218 | M51: 336.17 | N51: 200300.8685 | P51: 33100.09893 | Q51: 463401.385
B52: 2025 Q1 | C52: 0.0364 | D52: 0.0423 | F52: 2020-05-01 | G52: 2020 | H52: Q2 | I52: 2020 Q2 | J52: 197957.0885 | K52: 13752.07635 | L52: 0.0218 | M52: 359.62 | N52: 214412.5648 | P52: 33100.09893 | Q52: 496501.4839
B53: 2025 Q2 | C53: 0.0316 | D53: 0.0423 | F53: 2020-06-01 | G53: 2020 | H53: Q2 | I53: 2020 Q2 | J53: 211709.1648 | K53: 14927.15062 | L53: 0.0218 | M53: 384.6 | N53: 229724.3154 | P53: 33100.09893 | Q53: 529601.5828
B54: 2025 Q3 | C54: 0.0291 | D54: 0.0423 | F54: 2020-07-01 | G54: 2020 | H54: Q3 | I54: 2020 Q3 | J54: 226636.3154 | K54: 14518.19537 | L54: 0.0057 | M54: 107.65 | N54: 244350.1608 | P54: 33100.09893 | Q54: 562701.6817
B55: 2025 Q4 | C55: 0.0291 | D55: 0.0423 | F55: 2020-08-01 | G55: 2020 | H55: Q3 | I55: 2020 Q3 | J55: 241154.5108 | K55: 14283.23297 | L55: 0.0057 | M55: 114.55 | N55: 258747.9438 | P55: 33100.09893 | Q55: 595801.7807
B56: 2026 Q1 | C56: 0.0255 | D56: 0.0423 | F56: 2020-09-01 | G56: 2020 | H56: Q3 | I56: 2020 Q3 | J56: 255437.7438 | K56: 14106.69587 | L56: 0.0057 | M56: 121.33 | N56: 272975.9696 | P56: 33100.09893 | Q56: 628901.8796
B57: 2026 Q2 | C57: 0.0255 | D57: 0.0423 | F57: 2020-10-01 | G57: 2020 | H57: Q4 | I57: 2020 Q4 | J57: 269544.4396 | K57: 14449.83218 | L57: 0.0057 | M57: 128.03 | N57: 287553.8318 | P57: 33100.09893 | Q57: 662001.9785
B58: 2026 Q3 | C58: 0.0255 | D58: 0.0423 | F58: 2020-11-01 | G58: 2020 | H58: Q4 | I58: 2020 Q4 | J58: 283994.2718 | K58: 14344.36837 | L58: 0.0057 | M58: 134.9 | N58: 302033.1002 | P58: 33100.09893 | Q58: 695102.0775
B59: 2026 Q4 | C59: 0.0255 | D59: 0.0423 | F59: 2020-12-01 | G59: 2020 | H59: =IF(MONTH(F59)=0,"",IF(MONTH(F59)<4,"Q1",IF(MONTH(F59)<7,"Q2",IF(MONTH(F59)<10,"Q3","Q4")))) -> Q4 | I59: 2020 Q4 | J59: 298338.6402 | K59: 15030.31058 | L59: 0.0057 | M59: 141.71 | N59: 317205.1208 | P59: 33100.09893 | Q59: 728202.1764
F60: 2021-01-01 | G60: 2021 | H60: Q1 | I60: 2021 Q1 | J60: =J59+K59 -> 313368.9508 | K60: 13690.65939 | L60: 0.0057 | M60: 148.85 | N60: 331044.6302 | P60: 33100.09893 | Q60: 761302.2753
B61: Note: 2025-2026 Interest rates are forecasted. | F61: 2021-02-01 | G61: 2021 | H61: Q1 | I61: 2021 Q1 | J61: 327059.6102 | K61: 13430.69927 | L61: 0.0057 | M61: 155.35 | N61: 344630.6794 | P61: 33100.09893 | Q61: 794402.3742
F62: 2021-03-01 | G62: 2021 | H62: Q1 | I62: 2021 Q1 | J62: 340490.3094 | K62: 15110.65967 | L62: 0.0057 | M62: 161.73 | N62: 359903.0691 | P62: 33100.09893 | Q62: 827502.4732
F63: 2021-04-01 | G63: 2021 | H63: Q2 | I63: 2021 Q2 | J63: 355600.9691 | K63: 12229.00224 | L63: 0.0057 | M63: 168.91 | N63: 372300.9813 | P63: 33100.09893 | Q63: 860602.5721
F64: 2021-05-01 | G64: 2021 | H64: Q2 | I64: 2021 Q2 | J64: 367829.9713 | K64: 14662.55967 | L64: 0.0057 | M64: 174.72 | N64: 387138.261 | P64: 33100.09893 | Q64: 893702.671
F65: 2021-06-01 | G65: 2021 | H65: Q2 | I65: 2021 Q2 | J65: 382492.531 | K65: 14580.24743 | L65: 0.0057 | M65: 181.68 | N65: 401900.1884 | P65: 33100.09893 | Q65: 926802.7699
F66: 2021-07-01 | G66: 2021 | H66: Q3 | I66: 2021 Q3 | J66: 397072.7784 | K66: 14753.70031 | L66: 0.0057 | M66: 188.61 | N66: 416842.4987 | P66: 33100.09893 | Q66: 959902.8689
F67: 2021-08-01 | G67: 2021 | H67: Q3 | I67: 2021 Q3 | J67: 411826.4787 | K67: 15017.25119 | L67: 0.0057 | M67: 195.62 | N67: 432055.3699 | P67: 33100.09893 | Q67: 993002.9678
F68: 2021-09-01 | G68: 2021 | H68: Q3 | I68: 2021 Q3 | J68: 426843.7299 | K68: 13698.81155 | L68: 0.0057 | M68: 202.75 | N68: 445956.9315 | P68: 33100.09893 | Q68: 1026103.067
F69: 2021-10-01 | G69: 2021 | H69: Q4 | I69: 2021 Q4 | J69: 440542.5415 | K69: 14403.08165 | L69: 0.0057 | M69: 209.26 | N69: 460569.2731 | P69: 33100.09893 | Q69: 1059203.166
F70: 2021-11-01 | G70: 2021 | H70: Q4 | I70: 2021 Q4 | J70: 454945.6231 | K70: 14540.06774 | L70: 0.0057 | M70: 216.1 | N70: 475325.4409 | P70: 33100.09893 | Q70: 1092303.265
F71: 2021-12-01 | G71: 2021 | H71: =IF(MONTH(F71)=0,"",IF(MONTH(F71)<4,"Q1",IF(MONTH(F71)<7,"Q2",IF(MONTH(F71)<10,"Q3","Q4")))) -> Q4 | I71: 2021 Q4 | J71: 469485.6909 | K71: 14512.64018 | L71: 0.0057 | M71: 223.01 | N71: 490061.0911 | P71: 33100.09893 | Q71: 1125403.363
F72: 2022-01-01 | G72: =YEAR(F72) -> 2022 | H72: =IF(MONTH(F72)=0,"",IF(MONTH(F72)<4,"Q1",IF(MONTH(F72)<7,"Q2",IF(MONTH(F72)<10,"Q3","Q4")))) -> Q1 | I72: 2022 Q1 | J72: =J71+K71 -> 483998.3311 | K72: 13775.04535 | L72: 0.0057 | M72: =ROUND(J72*L72/12,2) -> 229.9 | N72: =N71+K72+M72 -> 504066.0364 | P72: 33100.09893 | Q72: =Q71+P72 -> 1158503.462
F73: 2022-02-01 | G73: 2022 | H73: Q1 | I73: 2022 Q1 | J73: 497773.3764 | K73: 13479.77292 | L73: 0.0057 | M73: 236.44 | N73: 517782.2493 | P73: 33100.09893 | Q73: 1191603.561
F74: 2022-03-01 | G74: 2022 | H74: Q1 | I74: 2022 Q1 | J74: 511253.1493 | K74: 15145.56829 | L74: 0.0057 | M74: 242.85 | N74: 533170.6676 | P74: 33100.09893 | Q74: 1224703.66
F75: 2022-04-01 | G75: 2022 | H75: Q2 | I75: 2022 Q2 | J75: 526398.7176 | K75: 13039.69651 | L75: 0.0102 | M75: 447.44 | N75: 546657.8041 | P75: 33100.09893 | Q75: 1257803.759
F76: 2022-05-01 | G76: 2022 | H76: Q2 | I76: 2022 Q2 | J76: 539438.4141 | K76: 14721.91191 | L76: 0.0102 | M76: 458.52 | N76: 561838.236 | P76: 33100.09893 | Q76: 1290903.858
F77: 2022-06-01 | G77: 2022 | H77: Q2 | I77: 2022 Q2 | J77: 554160.326 | K77: 14720.83841 | L77: 0.0102 | M77: 471.04 | N77: 577030.1145 | P77: 33100.09893 | Q77: 1324003.957
F78: 2022-07-01 | G78: 2022 | H78: Q3 | I78: 2022 Q3 | J78: 568881.1645 | K78: 14905.72308 | L78: 0.022 | M78: 1042.95 | N78: 592978.7875 | P78: 33100.09893 | Q78: 1357104.056
F79: 2022-08-01 | G79: 2022 | H79: Q3 | I79: 2022 Q3 | J79: 583786.8875 | K79: 15295.43507 | L79: 0.022 | M79: 1070.28 | N79: 609344.5026 | P79: 33100.09893 | Q79: 1390204.155
F80: 2022-09-01 | G80: 2022 | H80: Q3 | I80: 2022 Q3 | J80: 599082.3226 | K80: 13823.70632 | L80: 0.022 | M80: 1098.32 | N80: 624266.5289 | P80: 33100.09893 | Q80: 1423304.254
F81: 2022-10-01 | G81: 2022 | H81: Q4 | I81: 2022 Q4 | J81: 612906.0289 | K81: 14444.87995 | L81: 0.0387 | M81: 1976.62 | N81: 640688.0289 | P81: 33100.09893 | Q81: 1456404.353
F82: 2022-11-01 | G82: 2022 | H82: Q4 | I82: 2022 Q4 | J82: 627350.9089 | K82: 14118.72934 | L82: 0.0387 | M82: 2023.21 | N82: 656829.9682 | P82: 33100.09893 | Q82: 1489504.452
F83: 2022-12-01 | G83: 2022 | H83: =IF(MONTH(F83)=0,"",IF(MONTH(F83)<4,"Q1",IF(MONTH(F83)<7,"Q2",IF(MONTH(F83)<10,"Q3","Q4")))) -> Q4 | I83: 2022 Q4 | J83: 641469.6382 | K83: 14906.97142 | L83: 0.0387 | M83: 2068.74 | N83: 673805.6796 | P83: 33100.09893 | Q83: 1522604.551
F84: 2023-01-01 | G84: =YEAR(F84) -> 2023 | H84: =IF(MONTH(F84)=0,"",IF(MONTH(F84)<4,"Q1",IF(MONTH(F84)<7,"Q2",IF(MONTH(F84)<10,"Q3","Q4")))) -> Q1 | I84: 2023 Q1 | J84: =J83+K83 -> 656376.6096 | K84: 14583.20951 | L84: 0.0473 | M84: =ROUND(J84*L84/12,2) -> 2587.22 | N84: =N83+K84+M84 -> 690976.1091 | P84: 33100.09893 | Q84: =Q83+P84 -> 1555704.65
F85: 2023-02-01 | G85: 2023 | H85: Q1 | I85: 2023 Q1 | J85: 670959.8191 | K85: 13171.37296 | L85: 0.0473 | M85: 2644.7 | N85: 706792.1821 | P85: 33100.09893 | Q85: 1588804.748
F86: 2023-03-01 | G86: 2023 | H86: Q1 | I86: 2023 Q1 | J86: 684131.1921 | K86: 15155.34677 | L86: 0.0473 | M86: 2696.62 | N86: 724644.1489 | P86: 33100.09893 | Q86: 1621904.847
F87: 2023-04-01 | G87: 2023 | H87: Q2 | I87: 2023 Q2 | J87: 699286.5389 | K87: 14081.9707 | L87: 0.0498 | M87: 2902.04 | N87: 741628.1596 | P87: 33100.09893 | Q87: 1655004.946
F88: 2023-05-01 | G88: 2023 | H88: Q2 | I88: 2023 Q2 | J88: 713368.5096 | K88: 14833.23817 | L88: 0.0498 | M88: 2960.48 | N88: 759421.8777 | P88: 33100.09893 | Q88: 1688105.045
F89: 2023-06-01 | G89: 2023 | H89: Q2 | I89: =CONCATENATE(G89," ",H89) -> 2023 Q2 | J89: 728201.7477 | K89: 14519.45143 | L89: 0.0498 | M89: 3022.04 | N89: 776963.3692 | P89: 33100.09893 | Q89: 1721205.144
F90: 2023-07-01 | G90: 2023 | H90: Q3 | I90: 2023 Q3 | J90: 742721.1992 | K90: 15246.29971 | L90: 0.0498 | M90: 3082.29 | N90: 795291.9589 | P90: 33100.09893 | Q90: 1754305.243
F91: 2023-08-01 | G91: 2023 | H91: Q3 | I91: 2023 Q3 | J91: 757967.4989 | K91: 14712.15786 | L91: 0.0498 | M91: 3145.57 | N91: 813149.6867 | P91: 33100.09893 | Q91: 1787405.342
F92: 2023-09-01 | G92: 2023 | H92: Q3 | I92: 2023 Q3 | J92: 772679.6567 | K92: 14473.354 | L92: 0.0498 | M92: 3206.62 | N92: 830829.6607 | P92: 33100.09893 | Q92: 1820505.441
F93: 2023-10-01 | G93: 2023 | H93: Q4 | I93: 2023 Q4 | J93: 787153.0107 | K93: 14823.05729 | L93: 0.0549 | M93: 3601.23 | N93: 849253.948 | P93: 33100.09893 | Q93: 1853605.54
F94: 2023-11-01 | G94: 2023 | H94: Q4 | I94: 2023 Q4 | J94: 801976.068 | K94: 14032.04982 | L94: 0.0549 | M94: 3669.04 | N94: 866955.0378 | P94: 33100.09893 | Q94: 1886705.639
F95: 2023-12-01 | G95: 2023 | H95: =IF(MONTH(F95)=0,"",IF(MONTH(F95)<4,"Q1",IF(MONTH(F95)<7,"Q2",IF(MONTH(F95)<10,"Q3","Q4")))) -> Q4 | I95: 2023 Q4 | J95: 816008.1178 | K95: 14781.87096 | L95: 0.0549 | M95: 3733.24 | N95: 885470.1488 | P95: 33100.09893 | Q95: 1919805.738
F96: 2024-01-01 | G96: =YEAR(F96) -> 2024 | H96: =IF(MONTH(F96)=0,"",IF(MONTH(F96)<4,"Q1",IF(MONTH(F96)<7,"Q2",IF(MONTH(F96)<10,"Q3","Q4")))) -> Q1 | I96: 2024 Q1 | J96: =J95+K95 -> 830789.9888 | K96: 14563.25016 | L96: 0.0549 | M96: =ROUND(J96*L96/12,2) -> 3800.86 | N96: =N95+K96+M96 -> 903834.259 | P96: 33100.09893 | Q96: =Q95+P96 -> 1952905.837
F97: 2024-02-01 | G97: 2024 | H97: Q1 | I97: 2024 Q1 | J97: 845353.239 | K97: 13751.01699 | L97: 0.0549 | M97: 3867.49 | N97: 921452.7659 | P97: 33100.09893 | Q97: 1986005.936
F98: 2024-03-01 | G98: 2024 | H98: Q1 | I98: 2024 Q1 | J98: 859104.2559 | K98: 14649.91039 | L98: 0.0549 | M98: 3930.4 | N98: 940033.0763 | P98: 33100.09893 | Q98: 2019106.035
F99: 2024-04-01 | G99: 2024 | H99: Q2 | I99: 2024 Q2 | J99: 873754.1663 | K99: 14366.44901 | L99: 0.0549 | M99: 3997.43 | N99: 958396.9553 | P99: 33100.09893 | Q99: 2052206.133
F100: 2024-05-01 | G100: 2024 | H100: Q2 | I100: 2024 Q2 | J100: 888120.6153 | K100: 14712.13343 | L100: 0.0549 | M100: 4063.15 | N100: 977172.2388 | P100: 33100.09893 | Q100: 2085306.232
F101: 2024-06-01 | G101: 2024 | H101: Q2 | I101: 2024 Q2 | J101: 902832.7488 | K101: 14736.86888 | L101: 0.0549 | M101: 4130.46 | N101: 996039.5677 | P101: 33100.09893 | Q101: 2118406.331
F102: 2024-07-01 | G102: 2024 | H102: Q3 | I102: 2024 Q3 | J102: 917569.6177 | K102: 15374.98193 | L102: 0.052 | M102: 3976.14 | N102: 1015390.69 | P102: 33100.09893 | Q102: 2151506.43
F103: 2024-08-01 | G103: 2024 | H103: Q3 | I103: 2024 Q3 | J103: 932944.5996 | K103: 14975.57374 | L103: 0.052 | M103: 4042.76 | N103: 1034409.023 | P103: 33100.09893 | Q103: 2184606.529
F104: 2024-09-01 | G104: 2024 | H104: Q3 | I104: 2024 Q3 | J104: 947920.1733 | K104: 14537.97088 | L104: 0.052 | M104: 4107.65 | N104: 1053054.644 | P104: 33100.09893 | Q104: 2217706.628
F105: 2024-10-01 | G105: 2024 | H105: Q4 | I105: 2024 Q4 | J105: 962458.1442 | K105: 14938.86268 | L105: 0.044 | M105: 3529.01 | N105: 1071522.517 | P105: 33100.09893 | Q105: 2250806.727
F106: 2024-11-01 | G106: 2024 | H106: Q4 | I106: 2024 Q4 | J106: 977397.0069 | K106: 14107.56881 | L106: 0.044 | M106: 3583.79 | N106: 1089213.876 | P106: 33100.09893 | Q106: 2283906.826
F107: 2024-12-01 | G107: 2024 | H107: =IF(MONTH(F107)=0,"",IF(MONTH(F107)<4,"Q1",IF(MONTH(F107)<7,"Q2",IF(MONTH(F107)<10,"Q3","Q4")))) -> Q4 | I107: 2024 Q4 | J107: 991504.5757 | K107: 14692.86189 | L107: 0.044 | M107: 3635.52 | N107: 1107542.258 | P107: 33100.09893 | Q107: 2317006.925
F108: 2025-01-01 | G108: =YEAR(F108) -> 2025 | H108: =IF(MONTH(F108)=0,"",IF(MONTH(F108)<4,"Q1",IF(MONTH(F108)<7,"Q2",IF(MONTH(F108)<10,"Q3","Q4")))) -> Q1 | I108: 2025 Q1 | J108: =J107+K107 -> 1006197.438 | K108: 14929.66402 | L108: 0.0364 | M108: =ROUND(J108*L108/12,2) -> 3052.13 | N108: =N107+K108+M108 -> 1125524.052 | P108: 33100.09893 | Q108: =Q107+P108 -> 2350107.024
F109: 2025-02-01 | G109: 2025 | H109: Q1 | I109: 2025 Q1 | J109: 1021127.102 | K109: 13674.34094 | L109: 0.0364 | M109: 3097.42 | N109: 1142295.813 | P109: 33100.09893 | Q109: 2383207.123
F110: 2025-03-01 | G110: 2025 | H110: Q1 | I110: 2025 Q1 | J110: 1034801.443 | K110: 15174.38818 | L110: 0.0364 | M110: 3138.9 | N110: 1160609.101 | P110: 33100.09893 | Q110: 2416307.222
F111: 2025-04-01 | G111: 2025 | H111: Q2 | I111: 2025 Q2 | J111: 1049975.831 | K111: 14126.81464 | L111: 0.0316 | M111: 2764.94 | N111: 1177500.855 | P111: 33100.09893 | Q111: 2449407.321
F112: 2025-05-01 | G112: 2025 | H112: Q2 | I112: 2025 Q2 | J112: 1064102.645 | K112: 15142.44422 | L112: 0.0316 | M112: 2802.14 | N112: 1195445.44 | P112: 33100.09893 | Q112: 2482507.419
F113: 2025-06-01 | G113: 2025 | H113: Q2 | I113: 2025 Q2 | J113: 1079245.09 | K113: 15296.9354 | L113: 0.0316 | M113: 2842.01 | N113: 1213584.385 | P113: 33100.09893 | Q113: 2515607.518
F114: 2025-07-01 | G114: 2025 | H114: Q3 | I114: 2025 Q3 | J114: 1094542.025 | K114: 15755.51069 | L114: 0.0291 | M114: 2654.26 | N114: 1231994.156 | P114: 33100.09893 | Q114: 2548707.617
F115: 2025-08-01 | G115: 2025 | H115: Q3 | I115: 2025 Q3 | J115: 1110297.536 | K115: 15337.33878 | L115: 0.0291 | M115: 2692.47 | N115: 1250023.964 | P115: 33100.09893 | Q115: 2581807.716
F116: 2025-09-01 | G116: 2025 | H116: Q3 | I116: 2025 Q3 | J116: 1125634.874 | K116: 14416.14619 | L116: 0.0291 | M116: 2729.66 | N116: 1267169.771 | P116: 33100.09893 | Q116: 2614907.815
F117: 2025-10-01 | G117: 2025 | H117: Q4 | I117: 2025 Q4 | J117: 1140051.021 | K117: 14915.58127 | L117: 0.0291 | M117: 2764.62 | N117: 1284849.972 | P117: 33100.09893 | Q117: 2648007.914
F118: 2025-11-01 | G118: 2025 | H118: Q4 | I118: 2025 Q4 | J118: 1154966.602 | K118: 14545.9302 | L118: 0.0291 | M118: 2800.79 | N118: 1302196.692 | P118: 33100.09893 | Q118: 2681108.013
F119: 2025-12-01 | G119: 2025 | H119: =IF(MONTH(F119)=0,"",IF(MONTH(F119)<4,"Q1",IF(MONTH(F119)<7,"Q2",IF(MONTH(F119)<10,"Q3","Q4")))) -> Q4 | I119: 2025 Q4 | J119: 1169512.532 | K119: 15331.56375 | L119: 0.0291 | M119: 2836.07 | N119: 1320364.326 | P119: 33100.09893 | Q119: 2714208.112
F120: 2026-01-01 | G120: =YEAR(F120) -> 2026 | H120: =IF(MONTH(F120)=0,"",IF(MONTH(F120)<4,"Q1",IF(MONTH(F120)<7,"Q2",IF(MONTH(F120)<10,"Q3","Q4")))) -> Q1 | I120: 2026 Q1 | J120: =J119+K119 -> 1184844.096 | K120: 14959.35241 | L120: 0.0255 | M120: =ROUND(J120*L120/12,2) -> 2517.79 | N120: =N119+K120+M120 -> 1337841.468 | P120: 33100.09893 | Q120: =Q119+P120 -> 2747308.211
F121: 2026-02-01 | G121: 2026 | H121: Q1 | I121: 2026 Q1 | J121: 1199803.448 | K121: 13448.79269 | L121: 0.0255 | M121: 2549.58 | N121: 1353839.841 | P121: 33100.09893 | Q121: 2780408.31
F122: 2026-03-01 | G122: 2026 | H122: Q1 | I122: 2026 Q1 | J122: 1213252.241 | K122: 14727.39881 | L122: 0.0255 | M122: 2578.16 | N122: 1371145.4 | P122: 33100.09893 | Q122: 2813508.409
F123: 2026-04-01 | G123: 2026 | H123: Q2 | I123: 2026 Q2 | J123: 1227979.64 | K123: 14421.15742 | L123: 0.0255 | M123: 2609.46 | N123: 1388176.017 | P123: 33100.09893 | Q123: 2846608.508
F124: 2026-05-01 | G124: 2026 | H124: Q2 | I124: 2026 Q2 | J124: 1242400.797 | K124: 14829.99981 | L124: 0.0255 | M124: 2640.1 | N124: 1405646.117 | P124: 33100.09893 | Q124: 2879708.607
F125: 2026-06-01 | G125: 2026 | H125: Q2 | I125: 2026 Q2 | J125: 1257230.797 | K125: 15022.67511 | L125: 0.0255 | M125: 2671.62 | N125: 1423340.412 | P125: 33100.09893 | Q125: 2912808.706
F126: 2026-07-01 | G126: 2026 | H126: Q3 | I126: 2026 Q3 | J126: 1272253.472 | K126: 15901.57657 | L126: 0.0255 | M126: 2703.54 | N126: 1441945.529 | P126: 33100.09893 | Q126: 2945908.804
F127: 2026-08-01 | G127: 2026 | H127: Q3 | I127: 2026 Q3 | J127: 1288155.049 | K127: 15179.71959 | L127: 0.0255 | M127: 2737.33 | N127: 1459862.578 | P127: 33100.09893 | Q127: 2979008.903
F128: 2026-09-01 | G128: 2026 | H128: Q3 | I128: 2026 Q3 | J128: 1303334.768 | K128: 14435.63765 | L128: 0.0255 | M128: 2769.59 | N128: 1477067.806 | P128: 33100.09893 | Q128: 3012109.002
F129: 2026-10-01 | G129: 2026 | H129: Q4 | I129: 2026 Q4 | J129: 1317770.406 | K129: 14907.13601 | L129: 0.0255 | M129: 2800.26 | N129: 1494775.202 | P129: 33100.09893 | Q129: 3045209.101
F130: 2026-11-01 | G130: 2026 | H130: Q4 | I130: 2026 Q4 | J130: 1332677.542 | K130: 14663.46392 | L130: 0.0255 | M130: 2831.94 | N130: 1512270.606 | P130: 33100.09893 | Q130: 3078309.2
F131: 2026-12-01 | G131: 2026 | H131: =IF(MONTH(F131)=0,"",IF(MONTH(F131)<4,"Q1",IF(MONTH(F131)<7,"Q2",IF(MONTH(F131)<10,"Q3","Q4")))) -> Q4 | I131: 2026 Q4 | J131: 1347341.006 | K131: 15065.90468 | L131: 0.0255 | M131: 2863.1 | N131: 1530199.611 | P131: 33100.09893 | Q131: 3111409.299

Sheet 8. Opex Interest Annual
B13: This worksheet calculates the interest on amortization/depreciation expense, in the absence of monthly data.
B16: Sheet 8: Interest on Amortization (Annual Data)
B21: Year | D21: OM&A | F21: Amortization Expense | H21: Cumulative OM&A and Amortization Expense | J21: Average Cumulative OM&A and Amortization Expense | L21: Average Annual Prescribed Interest Rate for Deferral and Variance Accounts (from Sheet 7) | N21: Simple Interest on OM&A and Amortization Expenses
F22: (from Sheet 6)
B23: 2018 | D23: 0 | H23: =D23+F23 -> 0 | J23: =H23/2 -> 0 | L23: =AVERAGE('7. Funding Adder Revs'!C24:C27) -> 0.018625 | N23: =J23*L23 -> 0
B24: 2019 | D24: 0 | F24: =-'4. ICM_Assets_and_Rate_Base'!I357 -> 64780.15557 | H24: =H23+D24+F24 -> 64780.15557 | J24: =(H24+H23)/2 -> 32390.07778 | L24: =AVERAGE('7. Funding Adder Revs'!C28:C31) -> 0.022475 | N24: =J24*L24 -> 727.9669982
B25: 2020 | D25: 0 | F25: =-'4. ICM_Assets_and_Rate_Base'!K357 -> 64780.15557 | H25: =H24+D25+F25 -> 129560.3111 | J25: =(H25+H24)/2 -> 97170.23335 | L25: =AVERAGE('7. Funding Adder Revs'!C32:C35) -> 0.01375 | N25: =J25*L25 -> 1336.090709
B26: 2021 | D26: 0 | F26: =-'4. ICM_Assets_and_Rate_Base'!M357 -> 64780.15557 | H26: 194340.4667 | J26: 161950.3889 | L26: =AVERAGE('7. Funding Adder Revs'!C36:C39) -> 0.0057 | N26: 923.1172168
B27: 2022 | D27: 0 | F27: =-'4. ICM_Assets_and_Rate_Base'!O357 -> 64780.15557 | H27: =H26+D27+F27 -> 259120.6223 | J27: 226730.5445 | L27: =AVERAGE('7. Funding Adder Revs'!C40:C43) -> 0.01915 | N27: 4341.889927
B28: 2023 | D28: 0 | F28: =-'4. ICM_Assets_and_Rate_Base'!Q357 -> 64780.15557 | H28: 323900.7778 | J28: 291510.7001 | L28: =AVERAGE('7. Funding Adder Revs'!C44:C47) -> 0.05045 | N28: 14706.71482
B29: 2024 | D29: 0 | F29: =-'4. ICM_Assets_and_Rate_Base'!S357 -> 64780.15557 | H29: 388680.9334 | J29: 356290.8556 | L29: =AVERAGE('7. Funding Adder Revs'!C48:C51) -> 0.05145 | N29: 18331.16452
B30: 2025 | D30: 0 | F30: =-'4. ICM_Assets_and_Rate_Base'!U357 -> 61209.67422 | H30: 449890.6076 | J30: 419285.7705 | L30: =AVERAGE('7. Funding Adder Revs'!C52:C55) -> 0.03155 | N30: 13228.46606
B31: 2026 | D31: 0 | F31: =F30 -> 61209.67422 | H31: 511100.2819 | J31: 480495.4447 | L31: =AVERAGE('7. Funding Adder Revs'!C56:C59) -> 0.0255 | N31: =J31*L31 -> 12252.63384
B34: Cumulative Interest to 2018 | N34: =SUM($N$23:N23) -> 0
B35: Cumulative Interest to 2019 | N35: =SUM($N$23:N24) -> 727.9669982
B36: Cumulative Interest to 2020 | N36: =SUM($N$23:N25) -> 2064.057707
B37: Cumulative Interest to 2021 | N37: =SUM($N$23:N26) -> 2987.174924
B38: Cumulative Interest to 2022 | N38: =SUM($N$23:N27) -> 7329.064851
B39: Cumulative Interest to 2023 | N39: =SUM($N$23:N28) -> 22035.77967
B40: Cumulative Interest to 2024 | N40: =SUM($N$23:N29) -> 40366.94419
B41: Cumulative Interest to 2025 | N41: =SUM($N$23:N30) -> 53595.41025
B42: Cumulative Interest to 2026 | N42: =SUM($N$23:N31) -> 65848.04409

Sheet 9. IRR
B14: This worksheet calculates the ICM Incremental Revenue Requirement.
B17: Sheet 9: ICM Incremental Revenue Requirement
G20: 2018 | I20: 2019 | K20: 2020 | M20: 2021 | O20: 2022 | Q20: 2023 | S20: 2024 | U20: 2025 | W20: 2026 | Y20: Total
C22: Deferred and forecasted ICM Incremental Revenue Requirement (from Sheet 6) | I22: ='6. ICMIRR_2019'!$F$88/12*10 -> 169537.9093 | K22: ='6. ICMIRR_2019'!$F$88 -> 203445.4912 | M22: ='6. ICMIRR_2019'!$F$88 -> 203445.4912 | O22: ='6. ICMIRR_2019'!$F$88 -> 203445.4912 | Q22: ='6. ICMIRR_2019'!$F$88 -> 203445.4912 | S22: ='6. ICMIRR_2019'!$F$88 -> 203445.4912 | U22: ='6. ICMIRR_2019'!$F$88 -> 203445.4912 | W22: ='6. ICMIRR_2019'!$F$88 -> 203445.4912 | Y22: =SUM(G22:W22) -> 1593656.348
C24: Interest on Deferred and forecasted Amortization Expense (Sheet 8) | G24: ='8. Opex Interest Annual'!$N$23 -> 0 | I24: ='8. Opex Interest Annual'!$N$24 -> 727.9669982 | K24: ='8. Opex Interest Annual'!$N$25 -> 1336.090709 | M24: ='8. Opex Interest Annual'!$N$26 -> 923.1172168 | O24: ='8. Opex Interest Annual'!$N$27 -> 4341.889927 | Q24: ='8. Opex Interest Annual'!$N$28 -> 14706.71482 | S24: ='8. Opex Interest Annual'!$N$29 -> 18331.16452 | U24: ='8. Opex Interest Annual'!$N$30 -> 13228.46606 | W24: ='8. Opex Interest Annual'!$N$31 -> 12252.63384 | Y24: =SUM(G24:W24) -> 65848.04409
C27: ICM Rate Rider Revenues (from Sheet 7) | G27: =SUM('7. Funding Adder Revs'!K26:K35) -> 0 | I27: =SUM('7. Funding Adder Revs'!K36:K47) -> 142763.3044 | K27: =SUM('7. Funding Adder Revs'!K48:K59) -> 170605.6463 | M27: =SUM('7. Funding Adder Revs'!K60:K71) -> 170629.3803 | O27: =SUM('7. Funding Adder Revs'!K72:K83) -> 172378.2786 | Q27: =SUM('7. Funding Adder Revs'!K84:K95) -> 174413.3792 | S27: =SUM('7. Funding Adder Revs'!K96:K107) -> 175407.4488 | U27: =SUM('7. Funding Adder Revs'!K108:K119) -> 178646.6583 | W27: =SUM('7. Funding Adder Revs'!K120:K131) -> 177562.8147 | Y27: =SUM(G27:W27) -> 1362406.911
C29: ICM Rate Rider Interest (from Sheet 7) | G29: =SUM('7. Funding Adder Revs'!M27:M35) -> 0 | I29: =SUM('7. Funding Adder Revs'!M36:M47) -> 1154.6 | K29: =SUM('7. Funding Adder Revs'!M48:M59) -> 2681.57 | M29: =SUM('7. Funding Adder Revs'!M60:M71) -> 2226.59 | O29: =SUM('7. Funding Adder Revs'!M72:M83) -> 11366.31 | Q29: =SUM('7. Funding Adder Revs'!M84:M95) -> 37251.09 | S29: =SUM('7. Funding Adder Revs'!M96:M107) -> 46664.66 | U29: =SUM('7. Funding Adder Revs'!M108:M119) -> 34175.41 | W29: =SUM('7. Funding Adder Revs'!M120:M131) -> 32272.47 | Y29: =SUM(G29:W29) -> 167792.7
C31: Net Deferred Revenue Requirement | G31: =(G22+G24)-(G27+G29) -> 0 | I31: =(I22+I24)-(I27+I29) -> 26347.9719 | K31: =(K22+K24)-(K27+K29) -> 31494.36556 | M31: =(M22+M24)-(M27+M29) -> 31512.63812 | O31: =(O22+O24)-(O27+O29) -> 24042.79255 | Q31: =(Q22+Q24)-(Q27+Q29) -> 6487.736839 | S31: =(S22+S24)-(S27+S29) -> -295.4530763 | U31: =(U22+U24)-(U27+U29) -> 3851.888992 | W31: =(W22+W24)-(W27+W29) -> 5862.840371 | Y31: =(Y22+Y24)-(Y27+Y29) -> 129304.7813
